{"text_format":"1","workbook":"xlsx","n_sheets":1,"sheets":["NL"],"not_rendered":{"charts":0,"images":0,"macros":1,"external_links":0,"defined_names":0,"comments":0,"pivot_tables":0},"unopened":[],"bounds":{"document_bytes":16777216,"sheet_cells":100000,"rows_first":2000,"rows_last":500,"rows_between":2000,"halvings":0,"cell_chars":16384,"cell_head_chars":4096},"cells_cut":0,"cells_raw":0,"read":"whole","date_system":"1900"}

{"sheet":"NL","index":0,"n_rows":158,"n_cols":105,"rows_kept":158,"cut":false,"hidden":false,"merged":[[25,4,25,6],[53,2,53,4],[54,2,54,4],[0,0,0,14],[1,0,1,14],[2,0,2,13],[3,0,3,14],[12,4,12,5]]}
[]
["DIT WORKSHEET GEEFT EEN INSCHATTING VAN NODIGE VERMOGEN EN TYPE WARMTEPOMP VOOR UW ZWEMBAD. ",null,null,null,null,null,null,null,null,null,null,null,null,null,null,null,"Maand","Gem","Gem max","Water temp","Temp ","KW nodig om","kW die wamtepomp","Verbruik","Verbruik"]
["(Eigendom van Zwembad BVBA. Dit worksheet mag niet doorgestuurd of gecopieerd worden zonder schriftelijke toestemming)",null,null,null,null,null,null,null,null,null,null,null,null,null,null,null,null,"temp","temp","zonder","verhoging","temp hoog te houden","verbruikt","electr. Verw","olie",null,null,null,null,"Resultaten"]
[null,null,null,null,null,null,null,null,null,null,null,null,null,null,null,null,null,null,null,"verwarming",null,null,null,null,null,null,null,null,"jan","feb","ma","apr","mei","kW",null,null,null,null,null,null,null,null,null,null,null,null,null,null,null,null,null,null,null,null,null,null,null,null,null,null,null,null,null,null,null,null,null,null,null,null,null,null,null,null,null,null,"MONO",null,null,null,null,null,null,null,null,null,null,null,null,null,"TRIFASe"]
[]
["U kan de blauwe cijfers in dit worksheet naar eigen inzicht en situatie aanpassen ",null,null,null,null,null,null,null,null,null,null,null,null,null,null,null,null,null,null,null,null,null,null,null,null,null,null,null,{"$f":"IF(E$13=\"binnenbad\",$V$32/($AE$89*AH6/4),$V$7/($AE$89*AH6/4))","v":48.085333333333331},{"$f":"IF(E$13=\"binnenbad\",$V$32/($AE$89*AH6/4),$V$8/($AE$90*AH6/4))","v":43.355628415300551},{"$f":"IF(E$13=\"binnenbad\",$V$32/($AE$89*AH6/4),$V$9/($AE$91*AH6/4))","v":31.075555555555557},{"$f":"IF(E$13=\"binnenbad\",$V$32/($AE$89*AH6/4),$V$10/($AE$92*AH6/4))","v":21.733483992467043},{"$f":"IF(E$13=\"binnenbad\",$V$32/($AE$89*AH6/4),INT($V$11/($AE$93*AH6/4)))","v":13},50,null,null,null,null,null,null,null,null,null,null,null,null,null,null,null,null,null,null,null,null,null,null,null,null,null,null,null,null,null,null,null,null,null,null,null,null,null,null,null,null,null,null,"Eco warmtepompen mono",null,null,null,"Harmo pac warmtepompen mono",null,null,null,"Harmo Powerpac ",null,null,null,null,null,"Eco warmtepompen mono",null,null,null,"Harmo pac warmtepompen mono",null,null,null,"Harmo Powerpac "]
[null,null,null,null,null,null,null,null,null,null,null,null,null,null,null,null,"Jan",2.5,5.0999999999999996,{"$f":"Z7+(AA7*$E$22/100)","v":5},{"$f":"$E$11-T7","v":23},{"$f":"(1/Q$50)*(1.5-(E$12/200))*($E$10/50)*23*U7","v":987.46666666666658},{"$f":"V7/AE89","v":601.06666666666661},{"$f":"V7","v":987.46666666666658},{"$f":"X7/10","v":98.746666666666655},5,0,null,{"$f":"IF(E$13=\"binnenbad\",$V$32/($AE$89*AH7/4),$V$7/($AE$89*AH7/4))","v":49.066666666666663},{"$f":"IF(E$13=\"binnenbad\",$V$32/($AE$89*AH7/4),$V$8/($AE$90*AH7/4))","v":44.240437158469959},{"$f":"IF(E$13=\"binnenbad\",$V$32/($AE$89*AH7/4),$V$9/($AE$91*AH7/4))","v":31.709750566893426},{"$f":"IF(E$13=\"binnenbad\",$V$32/($AE$89*AH7/4),$V$10/($AE$92*AH7/4))","v":22.177024482109228},{"$f":"IF(E$13=\"binnenbad\",$V$32/($AE$89*AH7/4),INT($V$11/($AE$93*AH7/4)))","v":13},49]
["GEGEVENS VERWARMING EN ZWEMBAD",null,null,null,null,null,null,null,null,null,null,null,null,null,null,null,"feb",3.2,6.1,6,22,{"$f":"(1/Q$50)*(1.5-(E$12/200))*($E$10/50)*23*U8","v":944.5333333333333},{"$f":"V8/AE90","v":541.94535519125691},944.5333333333333,{"$f":"X8/10","v":94.453333333333333},6,0,null,50.088888888888881,45.162112932604742,32.370370370370374,22.639045825486502,{"$f":"IF(E$13=\"binnenbad\",$V$32/($AE$89*AH8/4),INT($V$11/($AE$93*AH8/4)))","v":13},48,null,null,null,null,null,null,null,null,null,null,null,null,null,null,null,null,null,null,null,null,null,null,null,null,null,null,null,null,null,null,null,null,null,null,null,null,null,null,null,null,null,1,"ECO 3","3 kW","ZVWX4012",null,"Harmo Pac","7 kW","ZVWX1017",null,"Harmo Powerpac","7 kW","ZVWX3100",null,null,1,"ECO 3","3 kW","ZVWX4012",null,"Harmo Pac","7 kW","ZVWX1017",null,"Harmo Powerpac ","7 kW","ZVWX3100",null,"ZVWX4052","Zwembad.eu / Verwarming / Warmtepomp / Harmo ECO","http://www.zwembad.eu/verwarming/warmtepomp/harmo-eco-p3030"]
[null,null,null,null,null,null,null,null,null,null,null,null,null,null,null,null,"Maart",5.7,9.1,9,19,{"$f":"(1/Q$50)*(1.5-(E$12/200))*($E$10/50)*23*U9","v":815.73333333333323},388.44444444444446,815.73333333333323,81.573333333333323,9,0,null,51.154609929078013,46.1230089524474,33.059101654846337,23.120727651560681,14,47,null,null,null,null,null,null,null,null,null,null,null,null,null,null,null,null,null,null,null,null,null,null,null,null,null,null,null,null,null,null,null,null,null,null,null,null,null,null,null,null,null,2,"ECO 3","3 kW","ZVWX4012",null,"Harmo Pac","7 kW","ZVWX1017",null,"Harmo Powerpac","7 kW","ZVWX3100",null,null,2,"ECO 3","3 kW","ZVWX4012",null,"Harmo Pac","7 kW","ZVWX1017",null,"Harmo Powerpac ","7 kW","ZVWX3100",null,"ZVWX4032","Zwembad.eu / Verwarming / Warmtepomp / Harmo ECO","http://www.zwembad.eu/verwarming/warmtepomp/harmo-eco-p3031"]
["Zwembad inhoud ",null,null,null,140,"m³",null,null,null,null,null,null,null,null,null,null,"April",8.6999999999999993,12.7,12,16,{"$f":"(1/Q$50)*(1.5-(E$12/200))*($E$10/50)*23*U10","v":686.93333333333328},271.66854990583801,686.93333333333328,68.693333333333328,12,1.5,null,52.266666666666666,47.125683060109303,33.777777777777779,23.623352165725045,14,46,null,null,null,null,null,null,null,null,null,null,null,null,null,null,null,null,null,null,null,null,null,null,null,null,null,null,null,null,null,null,null,null,null,null,null,null,null,null,null,null,null,3,"ECO 3","3 kW","ZVWX4012",null,"Harmo Pac","7 kW","ZVWX1017",null,"Harmo Powerpac","7 kW","ZVWX3100",null,null,3,"ECO 3","3 kW","ZVWX4012",null,"Harmo Pac","7 kW","ZVWX1017",null,"Harmo Powerpac ","7 kW","ZVWX3100",null,"ZVWX4022","Zwembad.eu / Verwarming / Warmtepomp / Harmo ECO","http://www.zwembad.eu/verwarming/warmtepomp/harmo-eco-p3032"]
["Gewenste watertemperatuur",null,null,null,28,"graden C",null,null,null,null,null,null,null,null,null,null,"Mei",12.7,16.2,16,12,515.19999999999993,166.19354838709677,515.19999999999993,51.519999999999996,16,3,null,53.428148148148139,48.172920461445059,34.528395061728396,24.148315547185604,14,45,null,null,null,null,null,null,null,null,null,null,null,null,null,null,null,null,null,null,null,null,null,null,null,null,null,null,null,null,null,null,null,null,null,null,null,null,null,null,null,null,null,4,"ECO 5","5 kW","ZVWX4022",null,"Harmo Pac","7 kW","ZVWX1017",null,"Harmo Powerpac","7 kW","ZVWX3100",null,null,4,"ECO 5","5 kW","ZVWX4022",null,"Harmo Pac","7 kW","ZVWX1017",null,"Harmo Powerpac ","7 kW","ZVWX3100",null,"ZVWX4012","Zwembad.eu / Verwarming / Warmtepomp / Harmo ECO","http://www.zwembad.eu/verwarming/warmtepomp/harmo-eco-p3033"]
["% ingebouwd",null,null,null,100,"% (0% = opbouw)",null,null,null,null,null,null,null,null,null,null,"Juni",15.7,19.8,20,8,343.46666666666664,97.338731443994604,343.46666666666664,34.346666666666664,20,5,null,54.642424242424241,49.26775956284154,35.313131313131315,24.69714090053073,15,44,null,null,null,null,null,null,null,null,null,null,null,null,null,null,null,null,null,null,null,null,null,null,null,null,null,null,null,null,null,null,null,null,null,null,null,null,null,null,null,null,null,5,"ECO 5","5 kW","ZVWX4022",null,"Harmo Pac","7 kW","ZVWX1017",null,"Harmo Powerpac","7 kW","ZVWX3100",null,null,5,"ECO 5","5 kW","ZVWX4022",null,"Harmo Pac","7 kW","ZVWX1017",null,"Harmo Powerpac ","7 kW","ZVWX3100",null,"ZVWX3140","Zwembad.eu / Verwarming / Warmtepomp / Harmo Powerpack verticaal","http://www.zwembad.eu/verwarming/warmtepomp/harmo-powerpack-verticaal-p6789"]
["Bubbelzeil, overkapping, rolldeck of binnenbad ?",null,null,null,"Overkapping",null,null,null,null,null,null,null,null,null,null,null,"July",17.2,21.8,22,6,257.59999999999997,68.824427480916015,257.59999999999997,25.759999999999998,22,5,null,55.91317829457364,50.413521413140181,36.134366925064604,25.27149301449656,15,43,null,null,null,null,null,null,null,null,null,null,null,null,null,null,null,null,null,null,null,null,null,null,null,null,null,null,null,null,null,null,null,null,null,null,null,null,null,null,null,null,null,6,"ECO 8","8 kW","ZVWX4032",null,"Harmo Pac","7 kW","ZVWX1017",null,"Harmo Powerpac","7 kW","ZVWX3100",null,null,6,"ECO 8","8 kW","ZVWX4032",null,"Harmo Pac","7 kW","ZVWX1017",null,"Harmo Powerpac ","7 kW","ZVWX3100",null,"ZVWX3131","Zwembad.eu / Verwarming / Warmtepomp / Harmo Powerpack verticaal","http://www.zwembad.eu/verwarming/warmtepomp/harmo-powerpack-verticaal-p6790"]
["Wanneer wil je kunnen zwemmen?",null,null,null,null,null,null,null,null,null,null,null,null,{"$f":"IF(E18=\"ja\",\"\",IF(E17=\"ja\",\"\",IF(E16=\"ja\",\"\",IF(E15=\"ja\",\"Volgens onze berekening zal de kost om uw zwembad contant van \"&B15&\" \"&D15&\" ongeveer \"&AI104&\" euro per jaar bedragen\",\"\"))))","v":""},null,null,"Aug",17,21.9,22,6,257.59999999999997,69.353846153846149,257.59999999999997,{"$f":"X14/10","v":25.759999999999998},22,5,null,57.24444444444444,51.613843351548276,36.994708994708994,25.873195229127433,15,42,null,null,null,null,null,null,null,null,null,null,null,null,null,null,null,null,null,null,null,null,null,null,null,null,null,null,null,null,null,null,null,null,null,null,null,null,null,null,null,null,null,7,"ECO 8","8 kW","ZVWX4032",null,"Harmo Pac","7 kW","ZVWX1017",null,"Harmo Powerpac","7 kW","ZVWX3100",null,null,7,"ECO 8","8 kW","ZVWX4032",null,"Harmo Pac","7 kW","ZVWX1017",null,"Harmo Powerpac ","7 kW","ZVWX3100",null,"ZVWX3130","Zwembad.eu / Verwarming / Warmtepomp / Harmo Powerpack verticaal","http://www.zwembad.eu/verwarming/warmtepomp/harmo-powerpack-verticaal-p6791"]
[null,"mei tot en met",null,"september","ja","(ja of neen invullen)",null,null,null,null,null,null,null,{"$f":"IF(E19=\"ja\",\"\",IF(E18=\"ja\",\"\",IF(E17=\"ja\",\"\",IF(E16=\"ja\",\"Volgens onze berekening zal de kost om uw zwembad contant van \"&B16&\" \"&D16&\" ongeveer \"&AI105&\" euro per jaar bedragen\",\"\"))))","v":"Volgens onze berekening zal de kost om uw zwembad contant van april tot en met oktober ongeveer 1774 euro per jaar bedragen"},null,null,"Sept ",14.4,18.899999999999999,18,10,429.33333333333331,128.43304843304841,429.33333333333331,{"$f":"X15/10","v":42.93333333333333},18,3,null,58.640650406504058,52.872717579634823,37.897018970189706,26.504248771301274,16,41,null,null,null,null,null,null,null,null,null,null,null,null,null,null,null,null,null,null,null,null,null,null,null,null,null,null,null,null,null,null,null,null,null,null,null,null,null,null,null,null,null,8,"ECO 8","8 kW","ZVWX4032",null,"Harmo Pac","10 kW","ZVWX1022",null,"Harmo Powerpac","10 kW","ZVWX3110",null,null,8,"ECO 8","8 kW","ZVWX4032",null,"Harmo Pac","10 kW","ZVWX1022",null,"Harmo Powerpac ","10 kW","ZVWX3110",null,"ZVWX3125","Zwembad.eu / Verwarming / Warmtepomp / Harmo Powerpack WiFi","http://www.zwembad.eu/verwarming/warmtepomp/harmo-powerpack-wifi-p6790"]
[null,"april tot en met",null,"oktober","ja","(ja of neen invullen)",null,null,null,null,null,null,null,"",null,null,"Okt",10.4,14.4,15,13,558.13333333333333,201.38831615120276,558.13333333333333,{"$f":"X16/10","v":55.813333333333333},15,1.5,null,{"$f":"IF(E$13=\"binnenbad\",$V$32/($AE$89*AH16/4),$V$7/($AE$89*AH16/4))","v":60.106666666666669},{"$f":"IF(E$13=\"binnenbad\",$V$32/($AE$89*AH16/4),$V$8/($AE$90*AH16/4))","v":54.194535519125694},{"$f":"IF(E$13=\"binnenbad\",$V$32/($AE$89*AH16/4),$V$9/($AE$91*AH16/4))","v":38.844444444444449},{"$f":"IF(E$13=\"binnenbad\",$V$32/($AE$89*AH16/4),$V$10/($AE$92*AH16/4))","v":27.166854990583804},16,40,null,null,null,null,null,null,null,null,null,null,null,null,null,null,null,null,null,null,null,null,null,null,null,null,null,null,null,null,null,null,null,null,null,null,null,null,null,null,null,null,null,9,"ECO 12","12 kW","ZVWX4052",null,"Harmo Pac","10 kW","ZVWX1022",null,"Harmo Powerpac","10 kW","ZVWX3110",null,null,9,"ECO 12","12 kW","ZVWX4052",null,"Harmo Pac","10 kW","ZVWX1022",null,"Harmo Powerpac ","10 kW","ZVWX3110",null,"ZVWX3120","Zwembad.eu / Verwarming / Warmtepomp / Harmo Powerpack WiFi","http://www.zwembad.eu/verwarming/warmtepomp/harmo-powerpack-wifi-p6791"]
[null,"maart tot en met ",null,"november","neen","(ja of neen invullen)",null,null,null,null,null,null,null,"",null,null,"Nov",6,9.1999999999999993,9,19,815.73333333333323,380.67555555555555,815.73333333333323,{"$f":"X17/10","v":81.573333333333323},9,0,null,61.647863247863242,55.584138993975067,39.840455840455839,27.863441015983387,17,39,null,null,null,null,null,null,null,null,null,null,null,null,null,null,null,null,null,null,null,null,null,null,null,null,null,null,null,null,null,null,null,null,null,null,null,null,null,null,null,null,null,10,"ECO 12","12 kW","ZVWX4052",null,"Harmo Pac","10 kW","ZVWX1022",null,"Harmo Powerpac","10 kW","ZVWX3110",null,null,10,"ECO 12","12 kW","ZVWX4052",null,"Harmo Pac","10 kW","ZVWX1022",null,"Harmo Powerpac ","10 kW","ZVWX3110",null,"ZVWX3110","Zwembad.eu / Verwarming / Warmtepomp / Harmo Powerpack","http://www.zwembad.eu/verwarming/warmtepomp/harmo-powerpack-p3078"]
[null,"jan tot en met",null,"december","neen","(ja of neen invullen)",null,null,null,null,null,null,null,{"$f":"N14&N15&N16&N17","v":"Volgens onze berekening zal de kost om uw zwembad contant van april tot en met oktober ongeveer 1774 euro per jaar bedragen"},null,null,"Dec",3.4,6,6,22,944.5333333333333,533.20430107526897,944.5333333333333,{"$f":"X18/10","v":94.453333333333333},6,0,null,63.270175438596489,57.046879493816519,40.888888888888893,28.596689463772421,17,38,null,null,null,null,null,null,null,null,null,null,null,null,null,null,null,null,null,null,null,null,null,null,null,null,null,null,null,null,null,null,null,null,null,null,null,null,null,null,null,null,null,11,"ECO 12","12 kW","ZVWX4052",null,"Harmo Pac","13 kW","ZVWX1032",null,"Harmo Powerpack WIFI","14 kW","ZVWX3120",null,null,11,"ECO 12","12 kW","ZVWX4052",null,"Harmo Pac","13 kW","ZVWX1032",null,"Harmo Powerpack WIFI","14 kW","ZVWX3120",null,"ZVWX3100","Zwembad.eu / Verwarming / Warmtepomp / Harmo Powerpack","http://www.zwembad.eu/verwarming/warmtepomp/harmo-powerpack-p3078"]
[null,null,null,null,null,null,null,null,null,null,null,null,null,null,null,null,null,null,null,null,null,null,null,null,null,null,null,null,64.98018018018017,58.588687047703459,41.993993993993996,29.369572962793303,17,37,null,null,null,null,null,null,null,null,null,null,null,null,null,null,null,null,null,null,null,null,null,null,null,null,null,null,null,null,null,null,null,null,null,null,null,null,null,null,null,null,null,12,"ECO 12","12 kW","ZVWX4052",null,"Harmo Pac","13 kW","ZVWX1032",null,"Harmo Powerpack WIFI","14 kW","ZVWX3120",null,null,12,"ECO 12","12 kW","ZVWX4052",null,"Harmo Pac","13 kW","ZVWX1032",null,"Harmo Powerpack WIFI","14 kW","ZVWX3120",null,"ZVWX1061","Zwembad.eu / Verwarming / Warmtepomp / Harmo PAC verticaal","http://www.zwembad.eu/verwarming/warmtepomp/harmo-pac-verticaal-p6788"]
[null,null,null,null,null,null,null,null,null,null,null,null,null,null,null,null,null,null,null,null,null,null,null,null,null,null,null,null,66.785185185185185,60.216150576806328,43.160493827160494,30.185394433982005,18,36,null,null,null,null,null,null,null,null,null,null,null,null,null,null,null,null,null,null,null,null,null,null,null,null,null,null,null,null,null,null,null,null,null,null,null,null,null,null,null,null,null,13,"Harmo Pac","18 kW","ZVWX1041",null,"Harmo Pac","13 kW","ZVWX1032",null,"Harmo Powerpack WIFI","14 kW","ZVWX3120",null,null,13,"Harmo Pac","18 kW","ZVWX1041",null,"Harmo Pac","13 kW","ZVWX1032",null,"Harmo Powerpack WIFI","14 kW","ZVWX3120",null,"ZVWX1056","Zwembad.eu / Verwarming / Warmtepomp / Harmo PAC verticaal","http://www.zwembad.eu/verwarming/warmtepomp/harmo-pac-verticaal-p6788"]
["Heeft U zonneverwarming ?",null,null,null,"neen","(ja of neen invullen)",null,null,null,null,null,null,null,null,null,null,null,null,100,1,null,null,null,null,null,null,null,null,68.693333333333328,61.936612021857933,44.393650793650799,31.047834274952915,18,35,null,null,null,null,null,null,null,null,null,null,null,null,null,null,null,null,null,null,null,null,null,null,null,null,null,null,null,null,null,null,null,null,null,null,null,null,null,null,null,null,null,14,"Harmo Pac","18 kW","ZVWX1041",null,"Harmo Pac","18 kW","ZVWX1041",null,"Harmo Powerpack WIFI","14 kW","ZVWX3120",null,null,14,"Harmo Pac","18 kW","ZVWX1041",null,"Harmo Pac","18 kW","ZVWX1041",null,"Harmo Powerpack WIFI","14 kW","ZVWX3120",null,"ZVWX1055","Zwembad.eu / Verwarming / Warmtepomp / Harmo PAC verticaal","http://www.zwembad.eu/verwarming/warmtepomp/harmo-pac-verticaal-p6788"]
["% oppervlakte zwembadverwarming ",null,null,null,0,"%",null,null,null,null,null,null,null,null,null,null,null,null,50,1.25,null,null,null,null,null,null,null,null,70.713725490196083,63.758277081324344,45.699346405228759,31.961005871275066,19,34,null,null,null,null,null,null,null,null,null,null,null,null,null,null,null,null,null,null,null,null,null,null,null,null,null,null,null,null,null,null,null,null,null,null,null,null,null,null,null,null,null,15,"Harmo Pac","18 kW","ZVWX1041",null,"Harmo Pac","18 kW","ZVWX1041",null,"Harmo Powerpack WIFI","19 kW","ZVWX3125",null,null,15,"Harmo Pac","18 kW","ZVWX1041",null,"Harmo Pac","18 kW","ZVWX1041",null,"Harmo Powerpack WIFI","19 kW","ZVWX3125",null,"ZVWX1041","Zwembad.eu / Verwarming / Warmtepomp / Harmo PAC verticaal","http://www.zwembad.eu/verwarming/warmtepomp/harmo-pac-verticaal-p6788"]
[null,null,null,null,null,null,null,null,null,null,null,null,null,null,null,null,null,null,0,1.5,null,null,null,null,null,null,null,null,72.85656565656565,65.690346083788725,47.084175084175087,32.92952120070764,20,33,null,null,null,null,null,null,null,null,null,null,null,null,null,null,null,null,null,null,null,null,null,null,null,null,null,null,null,null,null,null,null,null,null,null,null,null,null,null,null,null,null,16,"Harmo Pac","18 kW","ZVWX1041",null,"Harmo Pac","18 kW","ZVWX1041",null,"Harmo Powerpack WIFI","19 kW","ZVWX3125",null,null,16,"Harmo Pac","18 kW","ZVWX1041",null,"Harmo Pac","18 kW","ZVWX1041",null,"Harmo Powerpack WIFI","19 kW","ZVWX3125",null,"ZVWX1032","Zwembad.eu / Verwarming / Warmtepomp / Harmo PAC","http://www.zwembad.eu/verwarming/warmtepomp/harmo-pac-p3076"]
["Heeft u 380V (trifasé) of 230V mono ?",null,null,null,"230V mono",null,null,null,null,null,null,null,null,null,null,null,null,null,null,null,null,null,null,null,null,null,null,null,75.133333333333326,67.743169398907114,48.555555555555557,33.958568738229751,20,32,null,null,null,null,null,null,null,null,null,null,null,null,null,null,null,null,null,null,null,null,null,null,null,null,null,null,null,null,null,null,null,null,null,null,null,null,null,null,null,null,null,17,"Harmo Pac","18 kW","ZVWX1041",null,"Harmo Pac","18 kW","ZVWX1041",null,"Harmo Powerpack WIFI","19 kW","ZVWX3125",null,null,17,"Harmo Pac","18 kW","ZVWX1041",null,"Harmo Pac","18 kW","ZVWX1041",null,"Harmo Powerpack WIFI","19 kW","ZVWX3125",null,"ZVWX1022","Zwembad.eu / Verwarming / Warmtepomp / Harmo PAC","http://www.zwembad.eu/verwarming/warmtepomp/harmo-pac-p3076"]
[null,null,null,null,null,null,null,null,null,null,null,null,null,null,null,null,null,null,null,null,null,null,null,null,null,null,null,null,77.556989247311833,69.928432927904126,50.121863799283155,35.054006439462967,21,31,null,null,null,null,null,null,null,null,null,null,null,null,null,null,null,null,null,null,null,null,null,null,null,null,null,null,null,null,null,null,null,null,null,null,null,null,null,null,null,null,null,18,"Harmo Pac","18 kW","ZVWX1041",null,"Harmo Pac","18 kW","ZVWX1041",null,"Harmo Powerpack WIFI","19 kW","ZVWX3125",null,null,18,"Harmo Pac","18 kW","ZVWX1041",null,"Harmo Pac","18 kW","ZVWX1041",null,"Harmo Powerpack WIFI","19 kW","ZVWX3125",null,"ZVWX1017","Zwembad.eu / Verwarming / Warmtepomp / Harmo PAC"]
["Welk type warmtepomp wil u ?",null,null,null,"Beste kwaliteit , laagste energieverbruik bruikbaar het hele jaar.",null,null,null,null,null,null,null,null,null,null,null,"COP warmtepomp bij 26 graden",null,5,null,null,"Prijs 1 kWh dag",null,7.0000000000000007E-2,null,null,null,null,80.142222222222216,72.259380692167596,51.792592592592598,36.222473320778398,22,30,null,null,null,null,null,null,null,null,null,null,null,null,null,null,null,null,null,null,null,null,null,null,null,null,null,null,null,null,null,null,null,null,null,null,null,null,null,null,null,null,null,19,"Harmo Pac","22 kW ","ZVWX1055",null,"Harmo Pac","22 kW ","ZVWX1055",null,"Harmo Powerpack WIFI","19 kW","ZVWX3125",null,null,19,"Harmo Pac","22 kW trifasé","ZVWX3130",null,"Harmo Pac","22 kW trifasé","ZVWX1056",null,"Harmo Powerpack WIFI","19 kW","ZVWX3125",null,null,null,""]
[null,null,null,null,null,null,null,null,null,null,null,null,null,null,null,null,"COP warmtepomp bij 5 graden",null,2,null,null,"Prijs 1 kWh nacht",null,0.05,"euro/kWh",null,null,null,82.905747126436779,74.751083474656127,53.578544061302686,37.47152412494318,22,29,null,null,null,null,null,null,null,null,null,null,null,null,null,null,null,null,null,null,null,null,null,null,null,null,null,null,null,null,null,null,null,null,null,null,null,null,null,null,null,null,null,20,"Harmo Pac","22 kW ","ZVWX1055",null,"Harmo Pac","22 kW ","ZVWX1055",null,"Harmo Powerpac","22 kW","ZVWX3131",null,null,20,"Harmo Pac","22 kW trifasé","ZVWX3130",null,"Harmo Pac","22 kW trifasé","ZVWX1056",null,"Harmo Powerpac ","22 kW trifasé","ZVWX3130",null,null,null,""]
[null,null,null,null,null,null,null,null,null,null,null,null,null,null,null,null,null,null,null,null,null,null,null,null,null,null,null,null,85.86666666666666,77.420765027322417,55.492063492063494,38.809792843691149,23,28,null,null,null,null,null,null,null,null,null,null,null,null,null,null,null,null,null,null,null,null,null,null,null,null,null,null,null,null,null,null,null,null,null,null,null,null,null,null,null,null,null,21,"Harmo Pac","22 kW ","ZVWX1055",null,"Harmo Pac","22 kW ","ZVWX1055",null,"Harmo Powerpac","22 kW","ZVWX3131",null,null,21,"Harmo Pac","22 kW trifasé","ZVWX3130",null,"Harmo Pac","22 kW trifasé","ZVWX1056",null,"Harmo Powerpac ","22 kW trifasé","ZVWX3130",null,null,null,""]
[null,null,"ONS ADVIES : ",null,null,null,null,null,null,null,null,null,null,null,null,null,null,null,null,null,null,null,null,null,null,null,null,null,89.046913580246908,80.288200769075104,57.547325102880663,40.247192578642668,24,27,null,null,null,null,null,null,null,null,null,null,null,null,null,null,null,null,null,null,null,null,null,null,null,null,null,null,null,null,null,null,null,null,null,null,null,null,null,null,null,null,null,22,"Harmo Pac","22 kW ","ZVWX1055",null,"Harmo Pac","22 kW ","ZVWX1055",null,"Harmo Powerpac","22 kW","ZVWX3131",null,null,22,"Harmo Pac","22 kW trifasé","ZVWX3130",null,"Harmo Pac","22 kW trifasé","ZVWX1056",null,"Harmo Powerpac ","22 kW trifasé","ZVWX3130",null,null,null,""]
[null,null,null,null,null,null,null,null,null,null,null,null,null,null,null,null,null,null,null,null,null,null,null,null,null,null,null,null,92.471794871794856,83.376208490962611,59.760683760683762,41.795161523975089,25,26,null,null,null,null,null,null,null,null,null,null,null,null,null,null,null,null,null,null,null,null,null,null,null,null,null,null,null,null,null,null,null,null,null,null,null,null,null,null,null,null,null,23,"Harmo Pac","22 kW ","ZVWX1055",null,"Harmo Pac","22 kW ","ZVWX1055",null,"Harmo Powerpac","22 kW","ZVWX3131",null,null,23,"Harmo Pac","22 kW trifasé","ZVWX3130",null,"Harmo Pac","26 kW trifasé","ZVWX1061",null,"Harmo Powerpac ","30kW trifasé","ZVWX3140",null,null,null,""]
[null,null,"U heeft een warmtepomp nodig van minstens",null,{"$f":"IF(E18=\"ja\",VLOOKUP(30,AC6:AH85,6,TRUE)/Q50,IF(E17=\"ja\",VLOOKUP(30,AE6:AH85,4,TRUE)/Q50,IF(E16=\"ja\",VLOOKUP(30,AF6:AH85,3,TRUE)/Q50,IF(E15=\"ja\",VLOOKUP(30,AG6:AH85,2,TRUE)/Q50,\"blub\"))))","v":24.666666666666668},"kW",null,null,null,null,null,null,null,null,null,null,null,null,null,null,null,null,null,null,null,null,null,null,96.170666666666662,86.711256830601101,62.151111111111113,43.466967984934087,26,25,null,null,null,null,null,null,null,null,null,null,null,null,null,null,null,null,null,null,null,null,null,null,null,null,null,null,null,null,null,null,null,null,null,null,null,null,null,null,null,null,null,24,"Harmo Pac","22 kW ","ZVWX1055",null,"Harmo Pac","22 kW ","ZVWX1055",null,"Harmo Powerpac","22 kW","ZVWX3131",null,null,24,"Harmo Pac","22 kW trifasé","ZVWX3130",null,"Harmo Pac","26 kW trifasé","ZVWX1061",null,"Harmo Powerpac ","30kW trifasé","ZVWX3140",null,null,null,""]
[null,null,null,null,null,null,null,null,null,null,null,null,null,null,null,null,"Jan",20,20,17,{"$f":"$E$11-T32","v":11},{"$f":"IF($E$13=\"ja\",0.7*(-0.009*$E$12+2)*($E$10/50)*11.66*U32+0.0311,(-0.009*$E$12+2)*($E$10/50)*11.66*U32+0.0311)","v":395.07190000000003},{"$f":"V32/AE89","v":240.47854782608698},{"$f":"V32","v":395.07190000000003},{"$f":"X32/10","v":39.507190000000001},5,0,null,100.17777777777776,90.324225865209485,64.740740740740748,45.278091650973003,27,24,null,null,null,null,null,null,null,null,null,null,null,null,null,null,null,null,null,null,null,null,null,null,null,null,null,null,null,null,null,null,null,null,null,null,null,null,null,null,null,null,null,25,"Harmo Pac","22 kW ","ZVWX1055",null,"Harmo Pac","22 kW ","ZVWX1055",null,"Harmo Powerpac","22 kW","ZVWX3131",null,null,25,"Harmo Pac","22 kW trifasé","ZVWX3130",null,"Harmo Pac","26 kW trifasé","ZVWX1061",null,"Harmo Powerpac ","30kW trifasé","ZVWX3140",null,null,null,""]
[null,null,{"$f":"INT(E31+0.5)&\" kW verwarmt \"&E10&\" m³ water \"&INT(1000*E31*1*1*859/(E10*1000))/1000&\" graden in \"&1&\" uur\"","v":"25 kW verwarmt 140 m³ water 0,151 graden in 1 uur"},null,null,null,null,null,null,null,null,null,null,null,null,null,"feb",20,20,17,11,395.07190000000003,{"$f":"V33/AE90","v":226.68059836065581},395.07190000000003,{"$f":"X33/10","v":39.507190000000001},6,0,null,104.53333333333333,94.251366120218606,67.555555555555557,47.24670433145009,28,23,null,null,null,null,null,null,null,null,null,null,null,null,null,null,null,null,null,null,null,null,null,null,null,null,null,null,null,null,null,null,null,null,null,null,null,null,null,null,null,null,null,26,"Sorry, via deze weg kunnen wij geen AANBEVELING maken voor een warmtepomp. Contacteer ons via info@zwembad.eu","-","-",null,"Sorry, via deze weg kunnen wij geen AANBEVELING maken voor een warmtepomp. Contacteer ons via info@zwembad.eu","-","-",null,"Sorry, via deze weg kunnen wij geen AANBEVELING maken voor een warmtepomp. Contacteer ons via info@zwembad.eu","-","-",null,null,26,"Harmo Pac","26 kW trifasé","ZVWX1061",null,"Harmo Pac","26 kW trifasé","ZVWX1061",null,"Harmo Powerpac ","30kW trifasé","ZVWX3140",null,null,null,""]
[null,null,{"$f":"N18","v":"Volgens onze berekening zal de kost om uw zwembad contant van april tot en met oktober ongeveer 1774 euro per jaar bedragen"},null,null,null,null,null,null,null,null,null,null,null,null,null,"Maart",20,20,17,11,395.07190000000003,{"$f":"V34/AE91","v":188.12947619047623},395.07190000000003,39.507190000000001,9,0,null,109.28484848484848,98.535519125683081,70.62626262626263,49.39428180106146,30,22,null,null,null,null,null,null,null,null,null,null,null,null,null,null,null,null,null,null,null,null,null,null,null,null,null,null,null,null,null,null,null,null,null,null,null,null,null,null,null,null,null,27,"Sorry, via deze weg kunnen wij geen AANBEVELING maken voor een warmtepomp. Contacteer ons via info@zwembad.eu","-","-",null,"Sorry, via deze weg kunnen wij geen AANBEVELING maken voor een warmtepomp. Contacteer ons via info@zwembad.eu","-","-",null,"Sorry, via deze weg kunnen wij geen AANBEVELING maken voor een warmtepomp. Contacteer ons via info@zwembad.eu","-","-",null,null,27,"Harmo Pac","26 kW trifasé","ZVWX1061",null,"Harmo Pac","26 kW trifasé","ZVWX1061",null,"Harmo Powerpac ","30kW trifasé","ZVWX3140",null,null,null,""]
[null,null,null,null,null,null,null,null,null,null,null,null,null,null,null,null,"April",20,20,17,11,395.07190000000003,156.24312429378531,395.07190000000003,39.507190000000001,12,1.5,null,114.48888888888888,103.22768670309655,73.989417989417987,51.746390458254865,31,21,null,null,null,null,null,null,null,null,null,null,null,null,null,null,null,null,null,null,null,null,null,null,null,null,null,null,null,null,null,null,null,null,null,null,null,null,null,null,null,null,null,28,"Sorry, via deze weg kunnen wij geen AANBEVELING maken voor een warmtepomp. Contacteer ons via info@zwembad.eu","-","-",null,"Sorry, via deze weg kunnen wij geen AANBEVELING maken voor een warmtepomp. Contacteer ons via info@zwembad.eu","-","-",null,"Sorry, via deze weg kunnen wij geen AANBEVELING maken voor een warmtepomp. Contacteer ons via info@zwembad.eu","-","-",null,null,28,"Harmo Pac","26 kW trifasé","ZVWX1061",null,"Harmo Pac","26 kW trifasé","ZVWX1061",null,"Harmo Powerpac ","30kW trifasé","ZVWX3140",null,null,null,""]
[null,null,null,null,null,null,null,null,null,null,null,null,null,null,null,null,"Mei",20,20,17,11,395.07190000000003,127.44254838709679,395.07190000000003,39.507190000000001,16,3,null,120.21333333333334,108.38907103825139,77.688888888888897,54.333709981167608,33,20,null,null,null,null,null,null,null,null,null,null,null,null,null,null,null,null,null,null,null,null,null,null,null,null,null,null,null,null,null,null,null,null,null,null,null,null,null,null,null,null,null,29,"Sorry, via deze weg kunnen wij geen AANBEVELING maken voor een warmtepomp. Contacteer ons via info@zwembad.eu","-","-",null,"Sorry, via deze weg kunnen wij geen AANBEVELING maken voor een warmtepomp. Contacteer ons via info@zwembad.eu","-","-",null,"Sorry, via deze weg kunnen wij geen AANBEVELING maken voor een warmtepomp. Contacteer ons via info@zwembad.eu","-","-",null,null,29,"Harmo Pac","26 kW trifasé","ZVWX1061",null,"Harmo Pac","26 kW trifasé","ZVWX1061",null,"Harmo Powerpac ","30kW trifasé","ZVWX3140",null,null,null,""]
[null,null,"Wij bevelen u volgende warmtepomp aan :",null,{"$f":"IF($E$31>49,\"Sorry, via deze weg kunnen wij geen AANBEVELING maken voor een warmtepomp. Contacteer ons via info@zwembad.eu\",IF($E$24=\"230V mono\",UPPER(P65),UPPER(P66)))","v":"ZVWX3131"},{"$f":"IF($E$31>49,\"Sorry, via deze weg kunnen wij geen AANBEVELING maken voor een warmtepomp. Contacteer ons via info@zwembad.eu\",IF($E$24=\"230V mono\",UPPER(Q65),UPPER(Q66)))","v":"22 KW"},{"$f":"IF($E$31>49,\"Sorry, via deze weg kunnen wij geen AANBEVELING maken voor een warmtepomp. Contacteer ons via info@zwembad.eu\",IF($E$24=\"230V mono\",UPPER(R65),UPPER(R66)))","v":"HARMO POWERPAC "},null,null,null,null,null,null,null,null,null,"Juni",20,20,17,11,395.07190000000003,111.96369635627532,395.07190000000003,39.507190000000001,20,5,null,126.54035087719298,114.09375898763304,81.777777777777786,57.193378927544842,34,19,null,null,null,null,null,null,null,null,null,null,null,null,null,null,null,null,null,null,null,null,null,null,null,null,null,null,null,null,null,null,null,null,null,null,null,null,null,null,null,null,null,30,"Sorry, via deze weg kunnen wij geen AANBEVELING maken voor een warmtepomp. Contacteer ons via info@zwembad.eu","-","-",null,"Sorry, via deze weg kunnen wij geen AANBEVELING maken voor een warmtepomp. Contacteer ons via info@zwembad.eu","-","-",null,"Sorry, via deze weg kunnen wij geen AANBEVELING maken voor een warmtepomp. Contacteer ons via info@zwembad.eu","-","-",null,null,30,"Harmo Powerpac ","30kW trifasé","ZVWX3140",null,"Harmo Powerpac ","30kW trifasé","ZVWX3140",null,"Harmo Powerpac ","30kW trifasé","ZVWX3140",null,null,null,""]
[null,null,null,null,null,null,null,null,null,null,null,null,null,null,null,null,"July",20,20,17,11,395.07190000000003,105.55356106870229,395.07190000000003,39.507190000000001,22,5,null,133.57037037037037,120.43230115361266,86.320987654320987,60.370788867964009,36,18,null,null,null,null,null,null,null,null,null,null,null,null,null,null,null,null,null,null,null,null,null,null,null,null,null,null,null,null,null,null,null,null,null,null,null,null,null,null,null,null,null,31,"Sorry, via deze weg kunnen wij geen AANBEVELING maken voor een warmtepomp. Contacteer ons via info@zwembad.eu","-","-",null,"Sorry, via deze weg kunnen wij geen AANBEVELING maken voor een warmtepomp. Contacteer ons via info@zwembad.eu","-","-",null,"Sorry, via deze weg kunnen wij geen AANBEVELING maken voor een warmtepomp. Contacteer ons via info@zwembad.eu","-","-",null,null,31,"Harmo Powerpac ","30kW trifasé","ZVWX3140",null,"Harmo Powerpac ","30kW trifasé","ZVWX3140",null,"Harmo Powerpac ","30kW trifasé","ZVWX3140",null,null,null,""]
[null,null,null,null,null,null,null,null,null,null,null,null,null,null,null,null,"Aug",20,20,17,11,395.07190000000003,106.36551153846155,395.07190000000003,{"$f":"X39/10","v":39.507190000000001},22,5,null,141.42745098039217,127.51655416264869,91.398692810457518,63.922011742550133,39,17,null,null,null,null,null,null,null,null,null,null,null,null,null,null,null,null,null,null,null,null,null,null,null,null,null,null,null,null,null,null,null,null,null,null,null,null,null,null,null,null,null,32,"Sorry, via deze weg kunnen wij geen AANBEVELING maken voor een warmtepomp. Contacteer ons via info@zwembad.eu","-","-",null,"Sorry, via deze weg kunnen wij geen AANBEVELING maken voor een warmtepomp. Contacteer ons via info@zwembad.eu","-","-",null,"Sorry, via deze weg kunnen wij geen AANBEVELING maken voor een warmtepomp. Contacteer ons via info@zwembad.eu","-","-",null,null,32,"Harmo Powerpac ","30kW trifasé","ZVWX3140",null,"Harmo Powerpac ","30kW trifasé","ZVWX3140",null,"Harmo Powerpac ","30kW trifasé","ZVWX3140",null,null,null,""]
[null,null,null,null,null,null,null,null,null,null,null,null,null,null,null,null,"Sept ",20,20,17,11,395.07190000000003,118.18390170940171,395.07190000000003,{"$f":"X40/10","v":39.507190000000001},18,3,null,150.26666666666665,135.48633879781423,97.111111111111114,67.917137476459501,41,16,null,null,null,null,null,null,null,null,null,null,null,null,null,null,null,null,null,null,null,null,null,null,null,null,null,null,null,null,null,null,null,null,null,null,null,null,null,null,null,null,null,33,"Sorry, via deze weg kunnen wij geen AANBEVELING maken voor een warmtepomp. Contacteer ons via info@zwembad.eu","-","-",null,"Sorry, via deze weg kunnen wij geen AANBEVELING maken voor een warmtepomp. Contacteer ons via info@zwembad.eu","-","-",null,"Sorry, via deze weg kunnen wij geen AANBEVELING maken voor een warmtepomp. Contacteer ons via info@zwembad.eu","-","-",null,null,33,"Harmo Powerpac ","30kW trifasé","ZVWX3140",null,"Harmo Powerpac ","30kW trifasé","ZVWX3140",null,"Harmo Powerpac ","30kW trifasé","ZVWX3140",null,null,null,""]
[null,null,"Klik hier om deze warmtepomp in uw winkelmandje te leggen, surft u naar : ",null,null,null,{"$f":"VLOOKUP(E37,CY6:CZ30,2,FALSE)","v":"Zwembad.eu / Verwarming / Warmtepomp / Harmo Powerpack verticaal"},null,null,null,null,null,null,null,null,null,"Okt",20,20,17,11,395.07190000000003,142.55171649484538,395.07190000000003,{"$f":"X41/10","v":39.507190000000001},15,1.5,null,160.28444444444443,144.51876138433519,103.5851851851852,72.444946641556797,44,15,null,null,null,null,null,null,null,null,null,null,null,null,null,null,null,null,null,null,null,null,null,null,null,null,null,null,null,null,null,null,null,null,null,null,null,null,null,null,null,null,null,34,"Sorry, via deze weg kunnen wij geen AANBEVELING maken voor een warmtepomp. Contacteer ons via info@zwembad.eu","-","-",null,"Sorry, via deze weg kunnen wij geen AANBEVELING maken voor een warmtepomp. Contacteer ons via info@zwembad.eu","-","-",null,"Sorry, via deze weg kunnen wij geen AANBEVELING maken voor een warmtepomp. Contacteer ons via info@zwembad.eu","-","-",null,null,34,"Harmo Powerpac ","30kW trifasé","ZVWX3140",null,"Harmo Powerpac ","30kW trifasé","ZVWX3140",null,"Harmo Powerpac ","30kW trifasé","ZVWX3140",null,null,null,""]
[null,null,null,null,null,null,null,null,null,null,null,null,null,null,null,null,"Nov",20,20,17,{"$f":"$E$11-T42","v":11},{"$f":"IF($E$13=\"ja\",0.7*(-0.009*$E$12+2)*($E$10/50)*11.66*U42+0.0311,(-0.009*$E$12+2)*($E$10/50)*11.66*U42+0.0311)","v":395.07190000000003},{"$f":"V42/AE99","v":184.36688666666669},{"$f":"V42","v":395.07190000000003},{"$f":"X42/10","v":39.507190000000001},9,0,null,171.73333333333332,154.84153005464483,110.98412698412699,77.619585687382298,47,14,null,null,null,null,null,null,null,null,null,null,null,null,null,null,null,null,null,null,null,null,null,null,null,null,null,null,null,null,null,null,null,null,null,null,null,null,null,null,null,null,null,35,"Sorry, via deze weg kunnen wij geen AANBEVELING maken voor een warmtepomp. Contacteer ons via info@zwembad.eu","-","-",null,"Sorry, via deze weg kunnen wij geen AANBEVELING maken voor een warmtepomp. Contacteer ons via info@zwembad.eu","-","-",null,"Sorry, via deze weg kunnen wij geen AANBEVELING maken voor een warmtepomp. Contacteer ons via info@zwembad.eu","-","-",null,null,35,"Harmo Powerpac ","30kW trifasé","ZVWX3140",null,"Harmo Powerpac ","30kW trifasé","ZVWX3140",null,"Harmo Powerpac ","30kW trifasé","ZVWX3140",null,null,null,""]
[null,null,null,null,null,null,null,null,null,null,null,null,null,null,null,null,"Dec",20,20,17,11,395.07190000000003,223.02445967741943,395.07190000000003,{"$f":"X43/10","v":39.507190000000001},6,0,null,184.94358974358971,166.75241698192522,119.52136752136752,83.590323047950179,51,13,null,null,null,null,null,null,null,null,null,null,null,null,null,null,null,null,null,null,null,null,null,null,null,null,null,null,null,null,null,null,null,null,null,null,null,null,null,null,null,null,null,36,"Sorry, via deze weg kunnen wij geen AANBEVELING maken voor een warmtepomp. Contacteer ons via info@zwembad.eu","-","-",null,"Sorry, via deze weg kunnen wij geen AANBEVELING maken voor een warmtepomp. Contacteer ons via info@zwembad.eu","-","-",null,"Sorry, via deze weg kunnen wij geen AANBEVELING maken voor een warmtepomp. Contacteer ons via info@zwembad.eu","-","-",null,null,36,"Harmo Powerpac ","30kW trifasé","ZVWX3140",null,"Harmo Powerpac ","30kW trifasé","ZVWX3140",null,"Harmo Powerpac ","30kW trifasé","ZVWX3140",null,null,null,""]
[null,null,null,null,null,null,null,null,null,null,null,null,null,null,null,null,null,null,null,null,null,null,null,null,null,null,null,null,200.35555555555553,180.64845173041897,129.4814814814815,90.556183301946007,55,12,null,null,null,null,null,null,null,null,null,null,null,null,null,null,null,null,null,null,null,null,null,null,null,null,null,null,null,null,null,null,null,null,null,null,null,null,null,null,null,null,null,37,"Sorry, via deze weg kunnen wij geen AANBEVELING maken voor een warmtepomp. Contacteer ons via info@zwembad.eu","-","-",null,"Sorry, via deze weg kunnen wij geen AANBEVELING maken voor een warmtepomp. Contacteer ons via info@zwembad.eu","-","-",null,"Sorry, via deze weg kunnen wij geen AANBEVELING maken voor een warmtepomp. Contacteer ons via info@zwembad.eu","-","-",null,null,37,"Harmo Powerpac ","30kW trifasé","ZVWX3140",null,"Harmo Powerpac ","30kW trifasé","ZVWX3140",null,"Harmo Powerpac ","30kW trifasé","ZVWX3140",null,null,null,""]
[null,null,null,null,null,null,null,null,null,null,null,null,null,null,null,null,null,null,null,null,null,null,null,null,null,null,null,null,218.56969696969696,197.07103825136616,141.25252525252526,98.78856360212292,60,11,null,null,null,null,null,null,null,null,null,null,null,null,null,null,null,null,null,null,null,null,null,null,null,null,null,null,null,null,null,null,null,null,null,null,null,null,null,null,null,null,null,38,"Sorry, via deze weg kunnen wij geen AANBEVELING maken voor een warmtepomp. Contacteer ons via info@zwembad.eu","-","-",null,"Sorry, via deze weg kunnen wij geen AANBEVELING maken voor een warmtepomp. Contacteer ons via info@zwembad.eu","-","-",null,"Sorry, via deze weg kunnen wij geen AANBEVELING maken voor een warmtepomp. Contacteer ons via info@zwembad.eu","-","-",null,null,38,"Harmo Powerpac ","30kW trifasé","ZVWX3140",null,"Harmo Powerpac ","30kW trifasé","ZVWX3140",null,"Harmo Powerpac ","30kW trifasé","ZVWX3140",null,null,null,""]
[null,null,"Kostprijs Warmtepompen",null,null,null,null,null,null,null,null,null,null,null,null,null,null,null,null,null,null,null,null,null,null,null,null,null,240.42666666666668,216.77814207650277,155.37777777777779,108.66741996233522,66,10,null,null,null,null,null,null,null,null,null,null,null,null,null,null,null,null,null,null,null,null,null,null,null,null,null,null,null,null,null,null,null,null,null,null,null,null,null,null,null,null,null,39,"Sorry, via deze weg kunnen wij geen AANBEVELING maken voor een warmtepomp. Contacteer ons via info@zwembad.eu","-","-",null,"Sorry, via deze weg kunnen wij geen AANBEVELING maken voor een warmtepomp. Contacteer ons via info@zwembad.eu","-","-",null,"Sorry, via deze weg kunnen wij geen AANBEVELING maken voor een warmtepomp. Contacteer ons via info@zwembad.eu","-","-",null,null,39,"Harmo Powerpac ","30kW trifasé","ZVWX3140",null,"Harmo Powerpac ","30kW trifasé","ZVWX3140",null,"Harmo Powerpac ","30kW trifasé","ZVWX3140",null,null,null,""]
[null,null,null,null,null,null,null,null,null,null,null,null,null,null,null,null,null,null,null,null,"Kies hier",null,null,null,null,null,null,null,267.14074074074074,240.86460230722531,172.64197530864197,120.74157773592802,73,9,null,null,null,null,null,null,null,null,null,null,null,null,null,null,null,null,null,null,null,null,null,null,null,null,null,null,null,null,null,null,null,null,null,null,null,null,null,null,null,null,null,40,"Sorry, via deze weg kunnen wij geen AANBEVELING maken voor een warmtepomp. Contacteer ons via info@zwembad.eu","-","-",null,"Sorry, via deze weg kunnen wij geen AANBEVELING maken voor een warmtepomp. Contacteer ons via info@zwembad.eu","-","-",null,"Sorry, via deze weg kunnen wij geen AANBEVELING maken voor een warmtepomp. Contacteer ons via info@zwembad.eu","-","-",null,null,40,"Harmo Powerpac ","30kW trifasé","ZVWX3140",null,"Harmo Powerpac ","30kW trifasé","ZVWX3140",null,"Harmo Powerpac ","30kW trifasé","ZVWX3140",null,null,null,""]
[null,null,"Onderstaand overzicht is voorwaardelijk. Prijzen kunnen variaren naargelang het tijdstip van het seizoen, beschikbare voorraad, dollar wisselkoers, specifieke acties …",null,null,null,null,null,null,null,null,null,null,null,null,null,null,null,null,null,"Goede kwaliteit, laagste prijs , alleen bruikbaar mei-september",null,null,null,null,null,null,null,300.5333333333333,270.97267759562845,194.22222222222223,135.834274952919,83,8,null,null,null,null,null,null,null,null,null,null,null,null,null,null,null,null,null,null,null,null,null,null,null,null,null,null,null,null,null,null,null,null,null,null,null,null,null,null,null,null,null,41,"Sorry, via deze weg kunnen wij geen AANBEVELING maken voor een warmtepomp. Contacteer ons via info@zwembad.eu","-","-",null,"Sorry, via deze weg kunnen wij geen AANBEVELING maken voor een warmtepomp. Contacteer ons via info@zwembad.eu","-","-",null,"Sorry, via deze weg kunnen wij geen AANBEVELING maken voor een warmtepomp. Contacteer ons via info@zwembad.eu","-","-",null,null,41,"Sorry, via deze weg kunnen wij geen AANBEVELING maken voor een warmtepomp. Contacteer on via info@zwembad.eu","-","-",null,"Sorry, via deze weg kunnen wij geen AANBEVELING maken voor een warmtepomp. Contacteer on via info@zwembad.eu",null,"-","-","Sorry, via deze weg kunnen wij geen AANBEVELING maken voor een warmtepomp. Contacteer on via info@zwembad.eu","-","-",null,null,null,""]
[null,null,"De gelige prijs voor onze warmtepompen vindt u op www.zwembad.eu",null,null,null,null,null,null,null,null,null,null,null,null,null,"Factor",null,null,null,"Prima kwaliteit, goed energieverbruik, bruikbaar maart-november",null,null,null,null,null,null,null,343.46666666666664,309.68306010928967,221.96825396825398,155.2391713747646,94,7,null,null,null,null,null,null,null,null,null,null,null,null,null,null,null,null,null,null,null,null,null,null,null,null,null,null,null,null,null,null,null,null,null,null,null,null,null,null,null,null,null,42,"Sorry, via deze weg kunnen wij geen AANBEVELING maken voor een warmtepomp. Contacteer ons via info@zwembad.eu","-","-",null,"Sorry, via deze weg kunnen wij geen AANBEVELING maken voor een warmtepomp. Contacteer ons via info@zwembad.eu","-","-",null,"Sorry, via deze weg kunnen wij geen AANBEVELING maken voor een warmtepomp. Contacteer ons via info@zwembad.eu","-","-",null,null,42,"Sorry, via deze weg kunnen wij geen AANBEVELING maken voor een warmtepomp. Contacteer on via info@zwembad.eu","-","-",null,"Sorry, via deze weg kunnen wij geen AANBEVELING maken voor een warmtepomp. Contacteer on via info@zwembad.eu",null,"-","-","Sorry, via deze weg kunnen wij geen AANBEVELING maken voor een warmtepomp. Contacteer on via info@zwembad.eu","-","-",null,null,null,""]
[null,null,null,null,null,null,null,null,null,null,null,null,null,null,null,null,{"$f":"IF(E13=\"Geen afdekking\",0.8,IF(E13=\"overkapping\",1.5,IF(E13=\"rolldeck\",1.25,IF(E13=\"rolldeck solar\",1.5,IF(E13=\"binnenbad\",2,1)))))","v":1.5},null,null,null,"Beste kwaliteit , laagste energieverbruik bruikbaar het hele jaar.",null,null,null,null,null,null,null,400.71111111111105,361.29690346083794,258.96296296296299,181.11236660389201,110,6,null,null,null,null,null,null,null,null,null,null,null,null,null,null,null,null,null,null,null,null,null,null,null,null,null,null,null,null,null,null,null,null,null,null,null,null,null,null,null,null,null,43,"Sorry, via deze weg kunnen wij geen AANBEVELING maken voor een warmtepomp. Contacteer ons via info@zwembad.eu","-","-",null,"Sorry, via deze weg kunnen wij geen AANBEVELING maken voor een warmtepomp. Contacteer ons via info@zwembad.eu","-","-",null,"Sorry, via deze weg kunnen wij geen AANBEVELING maken voor een warmtepomp. Contacteer ons via info@zwembad.eu","-","-",null,null,43,"Sorry, via deze weg kunnen wij geen AANBEVELING maken voor een warmtepomp. Contacteer on via info@zwembad.eu","-","-",null,"Sorry, via deze weg kunnen wij geen AANBEVELING maken voor een warmtepomp. Contacteer on via info@zwembad.eu",null,"-","-","Sorry, via deze weg kunnen wij geen AANBEVELING maken voor een warmtepomp. Contacteer on via info@zwembad.eu","-","-",null,null,null,""]
[null,null,"Bij bestelling van een warmtepomp via de website, zal u de nodige producten en aansluitschema's vinden (Intex, Bestway, 50mm ingebouwd bad …).",null,null,null,null,null,null,null,null,null,null,null,null,null,null,null,null,null,null,null,null,null,null,null,null,null,480.85333333333335,433.55628415300555,310.75555555555559,217.33483992467043,132,5,null,null,null,null,null,null,null,null,null,null,null,null,null,null,null,null,null,null,null,null,null,null,null,null,null,null,null,null,null,null,null,null,null,null,null,null,null,null,null,null,null,44,"Sorry, via deze weg kunnen wij geen AANBEVELING maken voor een warmtepomp. Contacteer ons via info@zwembad.eu","-","-",null,"Sorry, via deze weg kunnen wij geen AANBEVELING maken voor een warmtepomp. Contacteer ons via info@zwembad.eu","-","-",null,"Sorry, via deze weg kunnen wij geen AANBEVELING maken voor een warmtepomp. Contacteer ons via info@zwembad.eu","-","-",null,null,44,"Sorry, via deze weg kunnen wij geen AANBEVELING maken voor een warmtepomp. Contacteer on via info@zwembad.eu","-","-",null,"Sorry, via deze weg kunnen wij geen AANBEVELING maken voor een warmtepomp. Contacteer on via info@zwembad.eu",null,"-","-","Sorry, via deze weg kunnen wij geen AANBEVELING maken voor een warmtepomp. Contacteer on via info@zwembad.eu","-","-",null,null,null,""]
[null,null,null,null,null,null,null,null,null,null,null,null,null,null,null,null,null,null,null,null,null,null,null,null,null,null,null,null,601.06666666666661,541.94535519125691,388.44444444444446,271.66854990583801,166,4,null,null,null,null,null,null,null,null,null,null,null,null,null,null,null,null,null,null,null,null,null,null,null,null,null,null,null,null,null,null,null,null,null,null,null,null,null,null,null,null,null,45,"Sorry, via deze weg kunnen wij geen AANBEVELING maken voor een warmtepomp. Contacteer ons via info@zwembad.eu","-","-",null,"Sorry, via deze weg kunnen wij geen AANBEVELING maken voor een warmtepomp. Contacteer ons via info@zwembad.eu","-","-",null,"Sorry, via deze weg kunnen wij geen AANBEVELING maken voor een warmtepomp. Contacteer ons via info@zwembad.eu","-","-",null,null,45,"Sorry, via deze weg kunnen wij geen AANBEVELING maken voor een warmtepomp. Contacteer on via info@zwembad.eu","-","-",null,"Sorry, via deze weg kunnen wij geen AANBEVELING maken voor een warmtepomp. Contacteer on via info@zwembad.eu",null,"-","-","Sorry, via deze weg kunnen wij geen AANBEVELING maken voor een warmtepomp. Contacteer on via info@zwembad.eu","-","-",null,null,null,""]
[null,null,"Voor gedetailleerde info betreffende deze warmtepompen, kan u terecht op www.harmopool.eu of www.zwembad.eu",null,null,null,null,null,null,null,null,null,null,null,null,null,null,null,null,null,null,null,null,null,null,null,null,null,801.4222222222221,722.59380692167588,517.92592592592598,362.22473320778403,221,3,null,null,null,null,null,null,null,null,null,null,null,null,null,null,null,null,null,null,null,null,null,null,null,null,null,null,null,null,null,null,null,null,null,null,null,null,null,null,null,null,null,46,"Sorry, via deze weg kunnen wij geen AANBEVELING maken voor een warmtepomp. Contacteer ons via info@zwembad.eu","-","-",null,"Sorry, via deze weg kunnen wij geen AANBEVELING maken voor een warmtepomp. Contacteer ons via info@zwembad.eu","-","-",null,"Sorry, via deze weg kunnen wij geen AANBEVELING maken voor een warmtepomp. Contacteer ons via info@zwembad.eu","-","-",null,null,46,"Sorry, via deze weg kunnen wij geen AANBEVELING maken voor een warmtepomp. Contacteer on via info@zwembad.eu","-","-",null,"Sorry, via deze weg kunnen wij geen AANBEVELING maken voor een warmtepomp. Contacteer on via info@zwembad.eu",null,"-","-","Sorry, via deze weg kunnen wij geen AANBEVELING maken voor een warmtepomp. Contacteer on via info@zwembad.eu","-","-",null,null,null,""]
[null,null,null,null,null,null,null,null,null,null,null,null,null,null,null,null,null,null,null,null,null,"Kies hier",null,null,null,null,null,null,1202.1333333333332,1083.8907103825138,776.88888888888891,543.33709981167601,332,2,null,null,null,null,null,null,null,null,null,null,null,null,null,null,null,null,null,null,null,null,null,null,null,null,null,null,null,null,null,null,null,null,null,null,null,null,null,null,null,null,null,47,"Sorry, via deze weg kunnen wij geen AANBEVELING maken voor een warmtepomp. Contacteer ons via info@zwembad.eu","-","-",null,"Sorry, via deze weg kunnen wij geen AANBEVELING maken voor een warmtepomp. Contacteer ons via info@zwembad.eu","-","-",null,"Sorry, via deze weg kunnen wij geen AANBEVELING maken voor een warmtepomp. Contacteer ons via info@zwembad.eu","-","-",null,null,47,"Sorry, via deze weg kunnen wij geen AANBEVELING maken voor een warmtepomp. Contacteer on via info@zwembad.eu","-","-",null,"Sorry, via deze weg kunnen wij geen AANBEVELING maken voor een warmtepomp. Contacteer on via info@zwembad.eu",null,"-","-","Sorry, via deze weg kunnen wij geen AANBEVELING maken voor een warmtepomp. Contacteer on via info@zwembad.eu","-","-",null,null,null,""]
[null,null,null,null,null,null,null,null,null,null,null,null,null,null,null,null,null,null,null,null,"ZALX5030","Harde PVC buis per meter",null,1.65289256198347,null,null,null,null,2404.2666666666664,2167.7814207650276,1553.7777777777778,1086.674199623352,{"$f":"IF(E$13=\"binnenbad\",$V$32/($AE$89*AH55/4),$V$11/($AE$93*AH55/4))","v":664.77419354838707},1,null,null,null,null,null,null,null,null,null,null,null,null,null,null,null,null,null,null,null,null,null,null,null,null,null,null,null,null,null,null,null,null,null,null,null,null,null,null,null,null,null,48,"Sorry, via deze weg kunnen wij geen AANBEVELING maken voor een warmtepomp. Contacteer ons via info@zwembad.eu","-","-",null,"Sorry, via deze weg kunnen wij geen AANBEVELING maken voor een warmtepomp. Contacteer ons via info@zwembad.eu","-","-",null,"Sorry, via deze weg kunnen wij geen AANBEVELING maken voor een warmtepomp. Contacteer ons via info@zwembad.eu","-","-",null,null,48,"Sorry, via deze weg kunnen wij geen AANBEVELING maken voor een warmtepomp. Contacteer on via info@zwembad.eu","-","-",null,"Sorry, via deze weg kunnen wij geen AANBEVELING maken voor een warmtepomp. Contacteer on via info@zwembad.eu",null,"-","-","Sorry, via deze weg kunnen wij geen AANBEVELING maken voor een warmtepomp. Contacteer on via info@zwembad.eu","-","-",null,null,null,""]
[null,null,"ECO",null,null,null,null,null,null,null,null,null,null,null,null,null,null,null,null,null,"ZALX5260","Flexibele PVC buis per meter",null,4.1322314049586799,null,null,null,null,null,null,null,null,null,null,null,null,null,null,null,null,null,null,null,null,null,null,null,null,null,null,null,null,null,null,null,null,null,null,null,null,null,null,null,null,null,null,null,null,null,null,null,null,null,null,null,49,"Sorry, via deze weg kunnen wij geen AANBEVELING maken voor een warmtepomp. Contacteer ons via info@zwembad.eu","-","-",null,"Sorry, via deze weg kunnen wij geen AANBEVELING maken voor een warmtepomp. Contacteer ons via info@zwembad.eu","-","-",null,"Sorry, via deze weg kunnen wij geen AANBEVELING maken voor een warmtepomp. Contacteer ons via info@zwembad.eu","-","-",null,null,49,"Sorry, via deze weg kunnen wij geen AANBEVELING maken voor een warmtepomp. Contacteer on via info@zwembad.eu","-","-",null,"Sorry, via deze weg kunnen wij geen AANBEVELING maken voor een warmtepomp. Contacteer on via info@zwembad.eu",null,"-","-","Sorry, via deze weg kunnen wij geen AANBEVELING maken voor een warmtepomp. Contacteer on via info@zwembad.eu","-","-",null,null,null,""]
[null,null,"Simpele draaiknop temp instelling",null,null,null,null,null,null,null,null,null,null,null,null,null,null,null,null,null,"ZALX5230","Flexibele PVC buis per 12,5 meter",null,45.454545454545503,null,null,null,null,null,null,null,null,null,null,null,null,null,null,null,null,null,null,null,null,null,null,null,null,null,null,null,null,null,null,null,null,null,null,null,null,null,null,null,null,null,null,null,null,null,null,null,null,null,null,null,50,"Sorry, via deze weg kunnen wij geen AANBEVELING maken voor een warmtepomp. Contacteer ons via info@zwembad.eu","-","-",null,"Sorry, via deze weg kunnen wij geen AANBEVELING maken voor een warmtepomp. Contacteer ons via info@zwembad.eu","-","-",null,"Sorry, via deze weg kunnen wij geen AANBEVELING maken voor een warmtepomp. Contacteer ons via info@zwembad.eu","-","-",null,null,50,"Sorry, via deze weg kunnen wij geen AANBEVELING maken voor een warmtepomp. Contacteer on via info@zwembad.eu","-","-",null,"Sorry, via deze weg kunnen wij geen AANBEVELING maken voor een warmtepomp. Contacteer on via info@zwembad.eu",null,"-","-","Sorry, via deze weg kunnen wij geen AANBEVELING maken voor een warmtepomp. Contacteer on via info@zwembad.eu","-","-",null,null,null,""]
[null,null,"Functioneel bij buitentemp > 8 graden",null,null,null,null,null,null,null,null,null,null,null,null,null,"230V mono",null,null,null,"ZALX5240","Flexibele PVC buis per 25 meter",null,86.776899999999998,null,null,null,null,null,null,null,null,null,null,null,null,null,null,null,null,null,null,null,null,null,null,null,null,null,null,null,null,null,null,null,null,null,null,null,null,null,null,null,null,null,null,null,null,null,null,null,null,null,null,null,null,null,null,null,null,null,null,null,null,null,null,null,null,null,null,null,null,null,null,null,null,null,null,null,null,null,null,null,null,""]
[null,null,"Bedrijfszeker door simpliciteit",null,null,null,null,null,null,null,null,null,null,null,null,null,"380V Trifasé",null,null,null,"ZALX5250","Flexibele PVC buis per 50 meter",null,157.02479338843,null,null,null,null,null,null,null,null,null,null,null,null,null,null,null,null,null,null,null,null,null,null,null,null,null,null,null,null,null,null,null,null,null,null,null,null,null,null,null,null,null,null,null,null,null,null,null,null,null,null,null,null,null,null,null,null,null,null,null,null,null,null,null,null,null,null,null,null,null,null,null,null,null,null,null,null,null,null,null,null,""]
[null,null,null,null,null,null,null,null,null,null,null,null,null,null,null,null,null,null,null,null,"reg","Geen buis nodig",null,0,null,null,null,null,null,null,null,null,null,null,null,null,null,null,null,null,null,null,null,null,null,null,null,null,null,null,null,null,null,null,null,null,null,null,null,null,null,null,null,null,null,null,null,null,null,null,null,null,null,null,null,null,null,null,null,null,null,null,null,null,null,null,null,null,null,null,null,null,null,null,null,null,null,null,null,null,null,null,null,null,""]
[null,null,"ECO 3","3 kW","ZVWX4012",445,"COP = 4,1",null,null,null,null,null,null,null,null,null,null,null,null,null,null,null,null,null,null,null,null,null,null,null,null,null,null,null,null,null,null,null,null,null,null,null,null,null,null,null,null,null,null,null,null,null,null,null,null,null,null,null,null,null,null,null,null,null,null,null,null,null,null,null,null,null,null,null,null,null,null,null,null,null,null,null,null,null,null,null,null,null,null,null,null,null,null,null,null,null,null,null,null,null,null,null,null,null,""]
[null,null,"ECO 5","5 kW","ZVWX4022",695,"COP = 5,1",null,null,null,null,null,null,null,null,null,null,null,null,null,null,null,null,null,null,null,null,null,null,null,null,null,null,null,null,null,null,null,null,null,null,null,null,null,null,null,null,null,null,null,null,null,null,null,null,null,null,null,null,null,null,null,null,null,null,null,null,null,null,null,null,null,null,null,null,null,null,null,null,null,null,null,null,null,null,null,null,null,null,null,null,null,null,null,null,null,null,null,null,null,null,null,null,null,""]
[null,null,"ECO 8","8 kW","ZVWX4032",799,"COP = 4,9",null,null,null,null,null,null,null,null,null,null,null,null,null,null,"Gekozen modellen",null,null,null,null,null,null,null,null,null,null,null,null,null,null,null,null,null,null,null,null,null,null,null,null,null,null,null,null,null,null,null,null,null,null,null,null,null,null,null,null,null,null,null,null,null,null,null,null,null,null,null,null,null,null,null,null,null,null,null,null,null,null,null,null,null,null,null,null,null,null,null,null,null,null,null,null,null,null,null,null,null,null,""]
[null,null,"ECO 12","12 kW","ZVWX4052",1195,"COP = 5,0",null,null,null,null,null,null,null,null,null,null,null,null,null,null,{"$f":"VLOOKUP(E31,BJ83:BO132,4,TRUE)","v":{"$error":"#N/A"}},null,null,null,null,null,null,null,null,null,null,null,null,null,null,null,null,null,null,null,null,null,null,null,null,null,null,null,null,null,null,null,null,null,null,null,null,null,null,null,null,null,null,null,null,null,null,null,null,null,null,null,null,null,null,null,null,null,null,null,null,null,null,null,null,null,null,null,null,null,null,null,null,null,null,null,null,null,null,null,null,null,null,""]
[null,null,null,null,null,null,null,null,null,null,null,null,null,null,null,{"$f":"IF(E26=\"Goede kwaliteit, laagste prijs , alleen bruikbaar mei-september\",VLOOKUP(INT(E31),BX8:CA57,4,FALSE),IF(E26=\"Prima kwaliteit, goed energieverbruik, bruikbaar maart-november\",VLOOKUP(INT(E31),BX8:CE57,8,FALSE),IF(E26=\"Beste kwaliteit , laagste energieverbruik bruikbaar het hele jaar.\",VLOOKUP(INT(E31),BX8:CI57,12,FALSE),\"Sorry, via deze weg kunnen wij geen AANBEVELING maken voor een warmtepomp. Contacteer ons via info@zwembad.eu\")))","v":"ZVWX3131"},{"$f":"IF(E26=\"Goede kwaliteit, laagste prijs , alleen bruikbaar mei-september\",VLOOKUP(INT(E31),BX8:CA57,3,FALSE),IF(E26=\"Prima kwaliteit, goed energieverbruik, bruikbaar maart-november\",VLOOKUP(INT(E31),BX8:CE57,7,FALSE),IF(E26=\"Beste kwaliteit , laagste energieverbruik bruikbaar het hele jaar.\",VLOOKUP(INT(E31),BX8:CI57,11,FALSE),\"Sorry, via deze weg kunnen wij geen AANBEVELING maken voor een warmtepomp. Contacteer ons via info@zwembad.eu\")))","v":"22 kW"},{"$f":"IF(E26=\"Goede kwaliteit, laagste prijs , alleen bruikbaar mei-september\",VLOOKUP(INT(E31),CL8:CW57,2,FALSE),IF(E26=\"Prima kwaliteit, goed energieverbruik, bruikbaar maart-november\",VLOOKUP(INT(E31),CL8:CW57,6,FALSE),IF(E26=\"Beste kwaliteit , laagste energieverbruik bruikbaar het hele jaar.\",VLOOKUP(INT(E31),CL8:CW57,10,FALSE),\"Sorry, via deze weg kunnen wij geen AANBEVELING maken voor een warmtepomp. Contacteer ons via info@zwembad.eu\")))","v":"Harmo Powerpac "},null,null,null,{"$f":"VLOOKUP(E31,BJ138:BO187,4,TRUE)","v":{"$error":"#N/A"}},null,null,null,null,null,null,null,null,null,null,null,null,null,null,null,null,null,null,null,null,null,null,null,null,null,null,null,null,null,null,null,null,null,null,null,null,null,null,null,null,null,null,null,null,null,null,null,null,null,null,null,null,null,null,null,null,null,null,null,null,null,null,null,null,null,null,null,null,null,null,null,null,null,null,null,null,null,null,null,null,null,null,""]
[null,null,"HarmoPAC",null,null,null,null,null,null,null,null,null,null,null,null,{"$f":"IF(E26=\"Goede kwaliteit, laagste prijs , alleen bruikbaar mei-september\",VLOOKUP(INT(E31),CL8:CO57,4,FALSE),IF(E26=\"Prima kwaliteit, goed energieverbruik, bruikbaar maart-november\",VLOOKUP(INT(E31),CL8:CO57,8,FALSE),IF(E26=\"Beste kwaliteit , laagste energieverbruik bruikbaar het hele jaar.\",VLOOKUP(INT(E31),CL8:CO57,12,FALSE),\"Sorry, via deze weg kunnen wij geen AANBEVELING maken voor een warmtepomp. Contacteer ons via info@zwembad.eu\")))","v":{"$error":"#REF!"}},{"$f":"IF(E26=\"Goede kwaliteit, laagste prijs , alleen bruikbaar mei-september\",VLOOKUP(INT(E31),CL8:CW57,3,FALSE),IF(E26=\"Prima kwaliteit, goed energieverbruik, bruikbaar maart-november\",VLOOKUP(INT(E31),CL8:CW57,7,FALSE),IF(E26=\"Beste kwaliteit , laagste energieverbruik bruikbaar het hele jaar.\",VLOOKUP(INT(E31),CL8:CW57,11,FALSE),\"Sorry, via deze weg kunnen wij geen AANBEVELING maken voor een warmtepomp. Contacteer ons via info@zwembad.eu\")))","v":"30kW trifasé"},{"$f":"IF(E26=\"Goede kwaliteit, laagste prijs , alleen bruikbaar mei-september\",VLOOKUP(INT(E31),BX8:CA57,2,FALSE),IF(E26=\"Prima kwaliteit, goed energieverbruik, bruikbaar maart-november\",VLOOKUP(INT(E31),BX8:CE57,6,FALSE),IF(E26=\"Beste kwaliteit , laagste energieverbruik bruikbaar het hele jaar.\",VLOOKUP(INT(E31),BX8:CI57,10,FALSE),\"Sorry, via deze weg kunnen wij geen AANBEVELING maken voor een warmtepomp. Contacteer ons via info@zwembad.eu\")))","v":"Harmo Powerpac"},null,null,null,{"$f":"VLOOKUP(E31,BJ8:BO60,4,TRUE)","v":{"$error":"#N/A"}},null,null,null,null,null,null,null,null,null,null,null,null,null,null,null,null,null,null,null,null,null,null,null,null,null,null,null,null,null,null,null,null,null,null,null,null,null,null,null,null,null,null,null,null,null,null,null,null,null,null,null,null,null,null,null,null,null,null,null,null,null,null,null,null,null,null,null,null,null,null,null,null,null,null,null,null,null,null,null,null,null,null,""]
[null,null,"Digitale controler",null,null,null,null,null,null,null,null,null,null,null,null,null,null,null,null,null,null,{"$f":"VLOOKUP(E31,BJ191:BN240,4,TRUE)","v":{"$error":"#N/A"}},null,null,null,null,null,null,null,null,null,null,null,null,null,null,null,null,null,null,null,null,null,null,null,null,null,null,null,null,null,null,null,null,null,null,null,null,null,null,null,null,null,null,null,null,null,null,null,null,null,null,null,null,null,null,null,null,null,null,null,null,null,null,null,null,null,null,null,null,null,null,null,null,null,null,null,null,null,null,null,null,null,null,""]
[null,null,"Functioneel bij buitentemperatuur > -5 graden",null,null,null,null,null,null,null,null,null,null,null,null,null,null,null,null,null,null,null,null,null,null,null,null,null,null,null,null,null,null,null,null,null,null,null,null,null,null,null,null,null,null,null,null,null,null,null,null,null,null,null,null,null,null,null,null,null,null,null,null,null,null,null,null,null,null,null,null,null,null,null,null,null,null,null,null,null,null,null,null,null,null,null,null,null,null,null,null,null,null,null,null,null,null,null,null,null,null,null,null,null,""]
[null,null,"Hoge efficientie ",null,null,null,null,null,null,null,null,null,null,null,null,null,"hyperlink",null,null,null,"beslissing",{"$f":"IF(G52=L89,F50,G52)","v":0},null,null,null,null,null,null,null,null,null,null,null,null,null,null,null,null,null,null,null,null,null,null,null,null,null,null,null,null,null,null,null,null,null,null,null,null,null,null,null,null,null,null,null,null,null,null,null,null,null,null,null,null,null,null,null,null,null,null,null,null,null,null,null,null,null,null,null,null,null,null,null,null,null,null,null,null,null,null,null,null,null,null,""]
[null,null,null,null,{"$f":"UPPER(E65)","v":""},null,null,null,null,null,null,null,null,null,null,null,null,null,null,null,null,null,null,null,null,null,null,null,null,null,null,null,null,null,null,null,null,null,null,null,null,null,null,null,null,null,null,null,null,null,null,null,null,null,null,null,null,null,null,null,null,null,null,null,null,null,null,null,null,null,null,null,null,null,null,null,null,null,null,null,null,null,null,null,null,null,null,null,null,null,null,null,null,null,null,null,null,null,null,null,null,null,null,null,""]
[null,null,"Harmo Pac","7 kW","ZVWX1017",999,"COP = 5,5",null,null,null,null,null,null,null,null,null,null,null,null,null,"bypass?",{"$f":"VLOOKUP(D74,BM7:BO254,3,FALSE)","v":{"$error":"#N/A"}},null,null,null,null,null,null,null,null,null,null,null,null,null,null,null,null,null,null,null,null,null,null,null,null,null,null,null,null,null,null,null,null,null,null,null,null,null,null,null,null,null,null,null,null,null,null,null,null,null,null,null,null,null,null,null,null,null,null,null,null,null,null,null,null,null,null,null,null,null,null,null,null,null,null,null,null,null,null,null,null,null,null,""]
[null,null,"Harmo Pac","10 kW","ZVWX1022",1249,"COP = 5,5",null,null,null,null,null,null,null,null,null,null,null,null,null,null,null,null,null,null,null,null,null,null,null,null,null,null,null,null,null,null,null,null,null,null,null,null,null,null,null,null,null,null,null,null,null,null,null,null,null,null,null,null,null,null,null,null,null,null,null,null,null,null,null,null,null,null,null,null,null,null,null,null,null,null,null,null,null,null,null,null,null,null,null,null,null,null,null,null,null,null,null,null,null,null,null,null,null,""]
[null,null,"Harmo Pac","13 kW","ZVWX1032",1899,"COP = 5,5",null,null,null,null,null,null,null,null,null,null,null,null,null,null,null,null,null,null,null,null,null,null,null,null,null,null,null,null,null,null,null,null,null,null,null,null,null,null,null,null,null,null,null,null,null,null,null,null,null,null,null,null,null,null,null,null,null,null,null,null,null,null,null,null,null,null,null,null,null,null,null,null,null,null,null,null,null,null,null,null,null,null,null,null,null,null,null,null,null,null,null,null,null,null,null,null,null,""]
[null,null,"Harmo Pac","18 kW","ZVWX1041",2350,"COP = 5,5",null,null,null,null,null,null,null,null,null,null,null,null,null,null,"Kies hier",null,null,null,null,null,null,null,null,null,null,null,null,null,null,null,null,null,null,null,null,null,null,null,null,null,null,null,null,null,null,null,null,null,null,null,null,null,null,null,null,null,null,null,null,null,null,null,null,null,null,null,null,null,null,null,null,null,null,null,null,null,null,null,null,null,null,null,null,null,null,null,null,null,null,null,null,null,null,null,null,null,null,""]
[null,null,"Harmo Pac","22 kW ","ZVWX1055",2950,"COP = 5,5",null,null,null,null,null,null,null,null,null,null,null,null,null,null,"32 of 38 mm ribbelslang",null,null,null,null,null,null,null,null,null,null,null,null,null,null,null,null,null,null,null,null,null,null,null,null,null,null,null,null,null,null,null,null,null,null,null,null,null,null,null,null,null,null,null,null,null,null,null,null,null,null,null,null,null,null,null,null,null,null,null,null,null,null,null,null,null,null,null,null,null,null,null,null,null,null,null,null,null,null,null,null,null,null,""]
[null,null,"Harmo Pac","22 kW trifasé","ZVWX3130",2950,"COP = 5,5",null,null,null,null,null,null,null,null,null,null,null,null,null,null,"50 mm te plakken",null,null,null,null,null,null,null,null,null,null,null,null,null,null,null,null,null,null,null,null,null,null,null,null,null,null,null,null,null,null,null,null,null,null,null,null,null,null,null,null,null,null,null,null,null,null,null,null,null,null,null,null,null,null,null,null,null,null,null,null,null,null,null,null,null,null,null,null,null,null,null,null,null,null,null,null,null,null,null,null,null,null,""]
[null,null,"Harmo Pac","26 kW trifasé","ZVWX1061",3250,"COP = 5,5",null,null,null,null,null,null,null,null,null,null,null,null,null,null,"63 mm te plakken",null,null,null,null,null,null,null,null,null,null,null,null,null,null,null,null,null,null,null,null,null,null,null,null,null,null,null,null,null,null,null,null,null,null,null,null,null,null,null,null,null,null,null,null,null,null,null,null,null,null,null,null,null,null,null,null,null,null,null,null,null,null,null,null,null,null,null,null,null,null,null,null,null,null,null,null,null,null,null,null,null,null,""]
[null,null,null,null,null,null,null,null,null,null,null,null,null,null,null,null,null,null,null,null,null,"2 inch buitenschroefdraad intex",null,null,null,null,null,null,null,null,null,null,null,null,null,null,null,null,null,null,null,null,null,null,null,null,null,null,null,null,null,null,null,null,null,null,null,null,null,null,null,null,null,null,null,null,null,null,null,null,null,null,null,null,null,null,null,null,null,null,null,null,null,null,null,null,null,null,null,null,null,null,null,null,null,null,null,null,null,null,null,null,null,null,""]
[null,null,"Harmo Powerpac ",null,null,null,null,null,null,null,null,null,null,null,null,null,null,null,null,null,null,"2 inch binnenschroefdraad intex",null,null,null,null,null,null,null,null,null,null,null,null,null,null,null,null,null,null,null,null,null,null,null,null,null,null,null,null,null,null,null,null,null,null,null,null,null,null,null,null,null,null,null,null,null,null,null,null,null,null,null,null,null,null,null,null,null,null,null,null,null,null,null,null,null,null,null,null,null,null,null,null,null,null,null,null,null,null,null,null,null,null,""]
[null,null,"Digitale controler",null,null,null,null,null,null,null,null,null,null,null,null,null,null,null,null,null,null,null,null,null,null,null,null,null,null,null,null,null,null,null,null,null,null,null,null,null,null,null,null,null,null,null,null,null,null,null,null,null,null,null,null,null,null,null,null,null,null,null,null,null,null,null,null,null,null,null,null,null,null,null,null,null,null,null,null,null,null,null,null,null,null,null,null,null,null,null,null,null,null,null,null,null,null,null,null,null,null,null,null,null,""]
[null,null,"Functioneel bij buitentemperatuur >-10 graden",null,null,null,null,null,null,null,null,null,null,null,null,null,null,null,null,null,null,null,null,null,null,null,null,null,null,null,null,null,null,null,null,null,null,null,null,null,null,null,null,null,null,null,null,null,null,null,null,null,null,null,null,null,null,null,null,null,null,null,null,null,null,null,null,null,null,null,null,null,null,null,null,null,null,null,null,null,null,null,null,null,null,null,null,null,null,null,null,null,null,null,null,null,null,null,null,null,null,null,null,null,""]
[null,null,"Hoge efficientie",null,null,null,null,null,null,null,null,null,null,null,null,null,null,null,null,null,null,null,null,null,null,null,null,null,null,null,null,null,null,null,null,null,null,null,null,null,null,null,null,null,null,null,null,null,null,null,null,null,null,null,null,null,null,null,null,null,null,null,null,null,null,null,null,null,null,null,null,null,null,null,null,null,null,null,null,null,null,null,null,null,null,null,null,null,null,null,null,null,null,null,null,null,null,null,null,null,null,null,null,null,""]
[null,null,null,null,null,null,null,null,null,null,null,null,null,null,null,null,null,null,null,null,null,"Potjes lijm 250ml",null,null,null,null,null,null,null,null,null,null,null,null,null,null,null,null,null,null,null,null,null,null,null,null,null,null,null,null,null,null,null,null,null,null,null,null,null,null,null,null,null,null,null,null,null,null,null,null,null,null,null,null,null,null,null,null,null,null,null,null,null,null,null,null,null,null,null,null,null,null,null,null,null,null,null,null,null,null,null,null,null,null,""]
[null,null,null,null,null,null,null,null,null,null,null,null,null,null,null,null,null,null,null,null,null,"Potjes lijm 250ml",null,null,null,null,null,null,null,null,null,null,null,null,null,null,null,null,null,null,null,null,null,null,null,null,null,null,null,null,null,null,null,null,null,null,null,null,null,null,null,null,null,null,null,null,null,null,null,null,null,null,null,null,null,null,null,null,null,null,null,null,null,null,null,null,null,null,null,null,null,null,null,null,null,null,null,null,null,null,null,null,null,null,""]
[null,null,"Harmo Powerpac + 7 kW",null,"ZVWX3100",1395,"COP = 5,9",null,null,null,null,null,null,null,null,null,null,null,null,null,null,null,null,null,null,null,null,null,null,null,"Details van de berekening",null,null,null,null,null,null,null,null,null,null,null,null,null,null,null,null,null,null,null,null,null,null,null,null,null,null,null,null,null,null,null,null,null,null,null,null,null,null,null,null,null,null,null,null,null,null,null,null,null,null,null,null,null,null,null,null,null,null,null,null,null,null,null,null,null,null,null,null,null,null,null,null,null,""]
[null,null,"Harmo Powerpac + 10 kW",null,"ZVWX3110",1695,"COP = 5,9",null,null,null,null,null,null,null,null,null,null,null,null,null,null,"Kies hier",null,null,null,null,null,null,null,null,null,null,null,null,null,null,null,null,null,null,null,null,null,null,null,null,null,null,null,null,null,null,null,null,null,null,null,null,null,null,null,null,null,null,null,null,null,null,null,null,null,null,null,null,null,null,null,null,null,null,null,null,null,null,null,null,null,null,null,null,null,null,null,null,null,null,null,null,null,null,null,null,null,null,""]
[null,null,"Harmo Powerpac 14,3 kW WIFI",null,"ZVWX3120",2096,"COP = 6,57",null,null,null,null,null,null,null,null,null,null,null,null,null,"ZALX1010","PVC zwembad lijm TANGIT 125ML",null,null,null,null,null,null,"Maand",null,"gem Cop","Opwarming ","Aantal uur","Kosten/dag","Kosten/maand","Opwarming ","Nombre d'heures","Frais/jour","Frais/mois",null,null,null,null,null,null,null,null,null,null,null,null,null,null,null,null,null,null,null,null,null,null,null,null,null,null,null,null,null,null,null,null,null,null,null,null,null,null,null,null,null,null,null,null,null,null,null,null,null,null,null,null,null,null,null,null,null,null,null,null,null,null,null,null,null,""]
[null,null,"Harmo Powerpac 19,6 kW WIFI",null,"ZVWX3125",2446,"COP = 6,57",null,null,null,null,null,null,null,null,null,null,null,null,null,"ZALX1020","PVC zwembad lijm TANGIT 250ML",null,null,null,null,null,null,null,null,"warmtepomp","per uur","per dag WP","(eur)","warmtepomp","per uur","par jour chauffage electrique","electr","chauffage electrique.",null,null,null,null,null,null,null,null,null,null,null,null,null,null,null,null,null,null,null,null,null,null,null,null,null,null,null,null,null,null,null,null,null,null,null,null,null,null,null,null,null,null,null,null,null,null,null,null,null,null,null,null,null,null,null,null,null,null,null,null,null,null,null,null,null,""]
[null,null,"Harmo Powerpac 22 kW",null,"ZVWX3131",3595,"COP = 5,2",null,null,null,null,null,null,null,null,null,null,null,null,null,null,null,null,null,null,null,null,null,"Jan",null,{"$f":"$S$26-(26-R7)*($S$26-$S$27)/21","v":1.6428571428571428},{"$f":"(AE89/4)*($E$31/1.16)/$E$10","v":6.2382711705371803E-2},{"$f":"IF(V7<0.01,0,V7/(AE89*$E$31/4))","v":97.470270270270262},{"$f":"($E$31/4)*AG89*($X$26*0.8+$X$27*1.2)/2","v":34.861866666666664},{"$f":"IF(AH89<0,0,AH89*31)","v":1080.7178666666666},{"$f":"(100/$E$10)*(#REF!/116)","v":{"$error":"#REF!"}},{"$f":"X6/#REF!","v":{"$error":"#REF!"}},{"$f":"IF(AK89>8,8*#REF!*$X$27+(AK89-8)*#REF!*$X$26*0.8,AK89*#REF!*$X$27)","v":{"$error":"#REF!"}},{"$f":"AL89*31","v":{"$error":"#REF!"}},null,null,null,null,null,null,null,null,null,null,null,null,null,null,null,null,null,null,null,null,null,null,null,null,null,null,null,null,null,null,null,null,null,null,null,null,null,null,null,null,null,null,null,null,null,null,null,null,null,null,null,null,null,null,null,null,null,null,null,null,null,null,null,null,null,""]
[null,null,"Harmo Powerpac 22 kW Tri",null,"ZVWX3130",3595,"COP = 5,2",null,null,null,null,null,null,null,null,null,null,null,null,null,null,null,null,null,null,null,null,null,"feb",null,1.7428571428571424,6.6179920243959633E-2,{"$f":"IF(V8<0.01,0,V8/(AE90*$E$31/4))","v":87.883030571555182},31.43283060109291,{"$f":"AH90*28","v":880.11925683060144},{"$f":"(100/$E$10)*(#REF!/116)","v":{"$error":"#REF!"}},{"$f":"X7/#REF!","v":{"$error":"#REF!"}},{"$f":"IF(AK90>8,8*#REF!*$X$27+(AK90-8)*#REF!*$X$26*0.8,AK90*#REF!*$X$27)","v":{"$error":"#REF!"}},{"$f":"AL90*31","v":{"$error":"#REF!"}},null,null,null,null,null,null,null,null,null,null,null,null,null,null,null,null,null,null,null,null,null,null,null,null,null,null,null,null,null,null,null,null,null,null,null,null,null,null,null,null,null,null,null,null,null,null,null,null,null,null,null,null,null,null,null,null,null,null,null,null,null,null,null,null,null,""]
[null,null,"Harmo Powerpac 30 kW tri",null,"ZVWX3140",3995,"COP = 5,4",null,null,null,null,null,null,null,null,null,null,null,null,null,null,null,null,null,null,null,null,null,"Maart",null,2.0999999999999996,7.974137931034482E-2,62.990990990990987,22.529777777777781,{"$f":"AH91*31","v":698.42311111111121},{"$f":"(100/$E$10)*(#REF!/116)","v":{"$error":"#REF!"}},{"$f":"X8/#REF!","v":{"$error":"#REF!"}},{"$f":"IF(AK91>8,8*#REF!*$X$27+(AK91-8)*#REF!*$X$26*0.8,AK91*#REF!*$X$27)","v":{"$error":"#REF!"}},{"$error":"#REF!"},null,null,null,null,null,null,null,null,null,null,null,null,null,null,null,null,null,null,null,null,null,null,null,null,null,null,null,null,null,null,null,null,null,null,null,null,null,null,null,null,null,null,null,null,null,null,null,null,null,null,null,null,null,null,null,null,null,null,null,null,null,null,null,null,null,""]
[null,null,null,null,null,null,null,null,null,null,null,null,null,null,null,null,null,null,null,null,"ZALX4360","PVC Overgang Ø5cm te lijmen naar Ø 3,2 / 3,8","PVC Overgang Ø5cm te lijmen naar Ø 3,2 / 3,8",2.06611570247934,null,null,null,null,"April",null,2.5285714285714285,9.6015130190007042E-2,44.054359444189949,15.756775894538604,{"$f":"AH92*30","v":472.70327683615812},{"$f":"(100/$E$10)*(#REF!/116)","v":{"$error":"#REF!"}},{"$f":"X9/#REF!","v":{"$error":"#REF!"}},{"$f":"IF(AK92>8,8*#REF!*$X$27+(AK92-8)*#REF!*$X$26*0.8,AK92*#REF!*$X$27)","v":{"$error":"#REF!"}},{"$error":"#REF!"},null,null,null,null,null,null,null,null,null,null,null,null,null,null,null,null,null,null,null,null,null,null,null,null,null,null,null,null,null,null,null,null,null,null,null,null,null,null,null,null,null,null,null,null,null,null,null,null,null,null,null,null,null,null,null,null,null,null,null,null,null,null,null,null,null,""]
[null,null,null,null,null,null,null,null,null,null,null,null,null,null,null,null,null,null,null,null,"ZALX9020","Spanring Inox Ø 32 / 38 mm","Spanring Inox Ø 32 / 38 mm",0.81818181818181801,null,null,null,null,"Mei",null,3.0999999999999996,0.11771346469622332,26.950305143853527,9.6392258064516128,{"$f":"AH93*31","v":298.81599999999997},{"$f":"(100/$E$10)*(#REF!/116)","v":{"$error":"#REF!"}},{"$f":"X10/#REF!","v":{"$error":"#REF!"}},{"$f":"IF(AK93>8,8*#REF!*$X$27+(AK93-8)*#REF!*$X$26*0.8,AK93*#REF!*$X$27)","v":{"$error":"#REF!"}},{"$error":"#REF!"},null,null,null,null,null,null,null,null,null,null,null,null,null,null,null,null,null,null,null,null,null,null,null,null,null,null,null,null,null,null,null,null,null,null,null,null,null,null,null,null,null,null,null,null,null,null,null,null,null,null,null,null,null,null,null,null,null,null,null,null,null,null,null,null,null,""]
[null,null,null,null,null,null,null,null,null,null,null,null,null,null,null,null,null,null,null,null,"ZALX3130","PVC Mof Ø 5cm","PVC Mof Ø 5cm",1.2396694214876001,null,null,null,null,"Juni",null,3.5285714285714285,0.13398721557588553,15.784659153080204,5.6456464237516863,{"$f":"AH94*30","v":169.36939271255059},{"$f":"(100/$E$10)*(#REF!/116)","v":{"$error":"#REF!"}},{"$f":"X11/#REF!","v":{"$error":"#REF!"}},{"$f":"IF(AK94>8,8*#REF!*$X$27+(AK94-8)*#REF!*$X$26*0.8,AK94*#REF!*$X$27)","v":{"$error":"#REF!"}},{"$error":"#REF!"},null,null,null,null,null,null,null,null,null,null,null,null,null,null,null,null,null,null,null,null,null,null,null,null,null,null,null,null,null,null,null,null,null,null,null,null,null,null,null,null,null,null,null,null,null,null,null,null,null,null,null,null,null,null,null,null,null,null,null,null,null,null,null,null,null,""]
[null,null,null,null,null,null,null,null,null,null,null,null,null,null,null,null,null,null,null,null,"ZALX3150","PVC Mof Ø 63cm","PVC Mof Ø 63cm",2.06611570247934,null,null,null,null,"July",null,3.7428571428571429,0.14212409101571663,11.160717969878274,3.9918167938931299,{"$f":"AH95*31","v":123.74632061068702},{"$f":"(100/$E$10)*(#REF!/116)","v":{"$error":"#REF!"}},{"$f":"X12/#REF!","v":{"$error":"#REF!"}},{"$f":"IF(AK95>8,8*#REF!*$X$27+(AK95-8)*#REF!*$X$26*0.8,AK95*#REF!*$X$27)","v":{"$error":"#REF!"}},{"$error":"#REF!"},null,null,null,null,null,null,null,null,null,null,null,null,null,null,null,null,null,null,null,null,null,null,null,null,null,null,null,null,null,null,null,null,null,null,null,null,null,null,null,null,null,null,null,null,null,null,null,null,null,null,null,null,null,null,null,null,null,null,null,null,null,null,null,null,null,""]
[null,null,null,null,null,null,null,null,null,null,null,null,null,null,null,null,null,null,null,null,"ZALX6025","Overgang van 50 naar 63mm","Overgang van 50 naar 63mm",{"$f":"1.5/1.21","v":1.2396694214876034},null,null,null,null,"Aug",null,3.7142857142857144,0.14103917429040583,11.246569646569645,4.0225230769230764,{"$f":"AH96*31","v":124.69821538461537},{"$f":"(100/$E$10)*(#REF!/116)","v":{"$error":"#REF!"}},{"$f":"X13/#REF!","v":{"$error":"#REF!"}},{"$f":"IF(AK96>8,8*#REF!*$X$27+(AK96-8)*#REF!*$X$26*0.8,AK96*#REF!*$X$27)","v":{"$error":"#REF!"}},{"$error":"#REF!"},null,null,null,null,null,null,null,null,null,null,null,null,null,null,null,null,null,null,null,null,null,null,null,null,null,null,null,null,null,null,null,null,null,null,null,null,null,null,null,null,null,null,null,null,null,null,null,null,null,null,null,null,null,null,null,null,null,null,null,null,null,null,null,null,null,""]
[null,null,null,null,null,null,null,null,null,null,null,null,null,null,null,null,null,null,null,null,"ZOIX9830","Slang met 2 schroefdichtingen INTEX","Slang met 2 schroefdichtingen INTEX",{"$f":"10/1.21","v":8.2644628099173563},null,null,null,null,"Sept ",null,3.342857142857143,0.12693525686136525,20.826980826980822,7.4491168091168083,{"$f":"AH97*30","v":223.47350427350426},{"$f":"(100/$E$10)*(#REF!/116)","v":{"$error":"#REF!"}},{"$f":"X14/#REF!","v":{"$error":"#REF!"}},{"$f":"IF(AK97>8,8*#REF!*$X$27+(AK97-8)*#REF!*$X$26*0.8,AK97*#REF!*$X$27)","v":{"$error":"#REF!"}},{"$error":"#REF!"},null,null,null,null,null,null,null,null,null,null,null,null,null,null,null,null,null,null,null,null,null,null,null,null,null,null,null,null,null,null,null,null,null,null,null,null,null,null,null,null,null,null,null,null,null,null,null,null,null,null,null,null,null,null,null,null,null,null,null,null,null,null,null,null,null,""]
[null,null,null,null,null,null,null,null,null,null,null,null,null,null,null,null,null,null,null,null,"ZALX4240","Overgang 2 inch schroefdraad (man) naar 50 te plakken","Overgang 2 inch schroefdraad (man) naar 50 te plakken",1.65289256198347,null,null,null,null,"Okt",null,2.7714285714285714,0.10523692235514896,32.657564781276115,11.680522336769759,{"$f":"AH98*31","v":362.09619243986253},{"$f":"(100/$E$10)*(#REF!/116)","v":{"$error":"#REF!"}},{"$f":"X15/#REF!","v":{"$error":"#REF!"}},{"$f":"IF(AK98>8,8*#REF!*$X$27+(AK98-8)*#REF!*$X$26*0.8,AK98*#REF!*$X$27)","v":{"$error":"#REF!"}},{"$error":"#REF!"},null,null,null,null,null,null,null,null,null,null,null,null,null,null,null,null,null,null,null,null,null,null,null,null,null,null,null,null,null,null,null,null,null,null,null,null,null,null,null,null,null,null,null,null,null,null,null,null,null,null,null,null,null,null,null,null,null,null,null,null,null,null,null,null,null,""]
[null,null,null,null,null,null,null,null,null,null,null,null,null,null,null,null,null,null,null,null,null,null,null,null,null,null,null,null,"Nov",null,2.1428571428571428,8.1368754398311038E-2,61.731171171171162,22.079182222222222,{"$f":"AH99*30","v":662.37546666666663},{"$f":"(100/$E$10)*(#REF!/116)","v":{"$error":"#REF!"}},{"$f":"X16/#REF!","v":{"$error":"#REF!"}},{"$f":"IF(AK99>8,8*#REF!*$X$27+(AK99-8)*#REF!*$X$26*0.8,AK99*#REF!*$X$27)","v":{"$error":"#REF!"}},{"$error":"#REF!"},null,null,null,null,null,null,null,null,null,null,null,null,null,null,null,null,null,null,null,null,null,null,null,null,null,null,null,null,null,null,null,null,null,null,null,null,null,null,null,null,null,null,null,null,null,null,null,null,null,null,null,null,null,null,null,null,null,null,null,null,null,null,null,null,null,""]
[null,null,null,null,null,null,null,null,null,null,null,null,null,null,null,null,null,null,null,null,"ZALX1020","PVC zwembad lijm TANGIT 250ML","PVC zwembad lijm TANGIT 250ML",6.1983471074380203,null,null,null,null,"Dec",null,1.7714285714285709,6.726483696927045E-2,86.465562336530098,30.925849462365601,{"$f":"AH100*30","v":927.77548387096806},{"$f":"(100/$E$10)*(#REF!/116)","v":{"$error":"#REF!"}},{"$f":"X17/#REF!","v":{"$error":"#REF!"}},{"$f":"IF(AK100>8,8*#REF!*$X$27+(AK100-8)*#REF!*$X$26*0.8,AK100*#REF!*$X$27)","v":{"$error":"#REF!"}},{"$error":"#REF!"},null,null,null,null,null,null,null,null,null,null,null,null,null,null,null,null,null,null,null,null,null,null,null,null,null,null,null,null,null,null,null,null,null,null,null,null,null,null,null,null,null,null,null,null,null,null,null,null,null,null,null,null,null,null,null,null,null,null,null,null,null,null,null,null,null,""]
[null,null,null,null,null,null,null,null,null,null,null,null,null,null,null,null,null,null,null,null,"ZALX1010","PVC zwembad lijm TANGIT 125ML","PVC zwembad lijm TANGIT 125ML",{"$f":"5/1.21","v":4.1322314049586781},null,null,null,null,null,null,null,null,null,null,null,null,null,null,null,null,null,null,null,null,null,null,null,null,null,null,null,null,null,null,null,null,null,null,null,null,null,null,null,null,null,null,null,null,null,null,null,null,null,null,null,null,null,null,null,null,null,null,null,null,null,null,null,null,null,null,null,null,null,null,null,null,null,null,null,null,null,null,null,null,""]
[null,null,null,null,null,null,null,null,null,null,null,null,null,null,null,null,null,null,null,null,null,null,null,null,null,null,null,null,null,null,null,null,null,null,null,null,null,null,null,null,null,null,null,null,null,null,null,null,null,null,null,null,null,null,null,null,null,null,null,null,null,null,null,null,null,null,null,null,null,null,null,null,null,null,null,null,null,null,null,null,null,null,null,null,null,null,null,null,null,null,null,null,null,null,null,null,null,null,null,null,null,null,null,null,""]
[null,null,null,null,null,null,null,null,null,null,null,null,null,null,null,null,null,null,null,null,null,null,null,null,null,null,null,null,null,null,"factor",null,null,null,null,null,null,null,null,null,null,null,null,null,null,null,null,null,null,null,null,null,null,null,null,null,null,null,null,null,null,null,null,null,null,null,null,null,null,null,null,null,null,null,null,null,null,null,null,null,null,null,null,null,null,null,null,null,null,null,null,null,null,null,null,null,null,null,null,null,null,null,null,null,""]
[null,null,null,null,null,null,null,null,null,null,null,null,null,null,null,null,null,null,null,null,null,null,null,null,null,null,null,null,null,null,"rolldeck solar",0.7,null,"mei-sep",{"$f":"INT(SUM(AI93:AI97))","v":940},null,null,null,null,null,null,null,null,null,null,null,null,null,null,null,null,null,null,null,null,null,null,null,null,null,null,null,null,null,null,null,null,null,null,null,null,null,null,null,null,null,null,null,null,null,null,null,null,null,null,null,null,null,null,null,null,null,null,null,null,null,null,null,null,null,null,null,null,null,""]
[null,null,null,null,null,null,null,null,null,null,null,null,null,null,null,null,null,null,null,null,null,null,null,null,null,null,null,null,null,null,"rolldeck",0.8,null,"april-okt",{"$f":"INT(SUM(AI92:AI98))","v":1774},null,null,null,null,null,null,null,null,null,null,null,null,null,null,null,null,null,null,null,null,null,null,null,null,null,null,null,null,null,null,null,null,null,null,null,null,null,null,null,null,null,null,null,null,null,null,null,null,null,null,null,null,null,null,null,null,null,null,null,null,null,null,null,null,null,null,null,null,null,""]
[null,null,null,null,null,null,null,null,null,null,null,null,null,null,null,null,null,null,null,null,"Geen afdekking",{"$f":"IF(E$13=U106,1,0)","v":0},null,null,null,null,null,null,null,null,"overkapping",0.7,null,"maart-nov",{"$f":"INT(SUM(AI91:AI99))","v":3135},null,null,null,null,null,null,null,null,null,null,null,null,null,null,null,null,null,null,null,null,null,null,null,null,null,null,null,null,null,null,null,null,null,null,null,null,null,null,null,null,null,null,null,null,null,null,null,null,null,null,null,null,null,null,null,null,null,null,null,null,null,null,null,null,null,null,null,null,null,""]
[null,null,null,null,null,null,null,null,null,null,null,null,null,null,null,null,null,null,null,null,"Bubbelzeil",{"$f":"IF(E$13=U107,0.7,0)","v":0},null,null,null,null,null,null,null,null,"ander",1,null,"jan-dev",{"$f":"INT(SUM(AI89:AI100))","v":6024},null,null,null,null,null,null,null,null,null,null,null,null,null,null,null,null,null,null,null,null,null,null,null,null,null,null,null,null,null,null,null,null,null,null,null,null,null,null,null,null,null,null,null,null,null,null,null,null,null,null,null,null,null,null,null,null,null,null,null,null,null,null,null,null,null,null,null,null,null,""]
[null,null,null,null,null,null,null,null,null,null,null,null,null,null,null,null,null,null,null,null,"Overkapping",{"$f":"IF(E$13=U108,0.7,0)","v":0.7},null,null,null,null,null,null,null,null,null,null,null,null,null,null,null,null,null,null,null,null,null,null,null,null,null,null,null,null,null,null,null,null,null,null,null,null,null,null,null,null,null,null,null,null,null,null,null,null,null,null,null,null,null,null,null,null,null,null,null,null,null,null,null,null,null,null,null,null,null,null,null,null,null,null,null,null,null,null,null,null,null,null,""]
[null,null,null,null,null,null,null,null,null,null,null,null,null,null,null,null,null,null,null,null,"Rolldeck",{"$f":"IF(E$13=U109,0.85,0)","v":0},null,null,null,null,null,null,null,null,null,null,null,null,null,null,null,null,null,null,null,null,null,null,null,null,null,null,null,null,null,null,null,null,null,null,null,null,null,null,null,null,null,null,null,null,null,null,null,null,null,null,null,null,null,null,null,null,null,null,null,null,null,null,null,null,null,null,null,null,null,null,null,null,null,null,null,null,null,null,null,null,null,null,""]
[null,null,null,null,null,null,null,null,null,null,null,null,null,null,null,null,null,null,null,null,"Rolldeck solar",{"$f":"IF(E$13=U110,0.7,0)","v":0},null,null,null,null,null,null,null,null,null,null,null,null,null,null,null,null,null,null,null,null,null,null,null,null,null,null,null,null,null,null,null,null,null,null,null,null,null,null,null,null,null,null,null,null,null,null,null,null,null,null,null,null,null,null,null,null,null,null,null,null,null,null,null,null,null,null,null,null,null,null,null,null,null,null,null,null,null,null,null,null,null,null,""]
[null,null,null,null,null,null,null,null,null,null,null,null,null,null,null,null,null,null,null,null,"Binnenbad",{"$f":"IF(E$13=U111,1,0)","v":0},null,null,null,null,null,null,null,null,null,null,null,null,null,null,null,null,null,null,null,null,null,null,null,null,null,null,null,null,null,null,null,null,null,null,null,null,null,null,null,null,null,null,null,null,null,null,null,null,null,null,null,null,null,null,null,null,null,null,null,null,null,null,null,null,null,null,null,null,null,null,null,null,null,null,null,null,null,null,null,null,null,null,""]
[null,null,null,null,null,null,null,null,null,null,null,null,null,null,null,null,null,null,null,null,null,{"$f":"SUM(V106:V111)","v":0.7},null,null,null,null,null,null,null,null,null,null,null,null,null,null,null,null,null,null,null,null,null,null,null,null,null,null,null,null,null,null,null,null,null,null,null,null,null,null,null,null,null,null,null,null,null,null,null,null,null,null,null,null,null,null,null,null,null,null,null,null,null,null,null,null,null,null,null,null,null,null,null,null,null,null,null,null,null,null,null,null,null,null,""]
[null,null,null,null,null,null,null,null,null,null,null,null,null,null,null,null,null,null,null,null,"aanbeveling",null,null,null,null,null,null,null,null,null,null,null,null,null,null,null,null,null,null,null,null,null,null,null,null,null,null,null,null,null,null,null,null,null,null,null,null,null,null,null,null,null,null,null,null,null,null,null,null,null,null,null,null,null,null,null,null,null,null,null,null,null,null,null,null,null,null,null,null,null,null,null,null,null,null,null,null,null,null,null,null,null,null,null,""]
[null,null,null,null,null,null,null,null,null,null,null,null,null,null,null,null,null,null,null,null,{"$f":"IF(E26<>\"All seasons en SPA warmtepomp : werkt tot -5°C, max temp 40°C\",VLOOKUP(E31,BJ8:BL58,2,TRUE),\"\")","v":{"$error":"#N/A"}},null,null,null,null,null,null,null,null,null,null,null,null,null,null,null,null,null,null,null,null,null,null,null,null,null,null,null,null,null,null,null,null,null,null,null,null,null,null,null,null,null,null,null,null,null,null,null,null,null,null,null,null,null,null,null,null,null,null,null,null,null,null,null,null,null,null,null,null,null,null,null,null,null,null,null,null,null,null,null,null,null,null,null,""]
[null,null,null,null,null,null,null,null,null,null,null,null,null,null,null,null,null,null,null,null,{"$f":"IF(E26=\"All seasons en SPA warmtepomp : werkt tot -5°C, max temp 40°C\",VLOOKUP(E31,BJ83:BL132,2,TRUE),\"\")","v":""},null,null,null,null,null,null,null,null,null,null,null,null,null,null,null,null,null,null,null,null,null,null,null,null,null,null,null,null,null,null,null,null,null,null,null,null,null,null,null,null,null,null,null,null,null,null,null,null,null,null,null,null,null,null,null,null,null,null,null,null,null,null,null,null,null,null,null,null,null,null,null,null,null,null,null,null,null,null,null,null,null,null,null,""]
[null,null,null,null,null,null,null,null,null,null,null,null,null,null,null,null,null,null,null,null,{"$f":"U114&U115","v":{"$error":"#N/A"}},null,null,null,null,null,null,null,null,null,null,null,null,null,null,null,null,null,null,null,null,null,null,null,null,null,null,null,null,null,null,null,null,null,null,null,null,null,null,null,null,null,null,null,null,null,null,null,null,null,null,null,null,null,null,null,null,null,null,null,null,null,null,null,null,null,null,null,null,null,null,null,null,null,null,null,null,null,null,null,null,null,null,null,""]
[null,null,null,null,null,null,null,null,null,null,null,null,null,null,null,null,null,null,null,null,null,null,null,null,null,null,null,null,null,null,null,null,null,null,null,null,null,null,null,null,null,null,null,null,null,null,null,null,null,null,null,null,null,null,null,null,null,null,null,null,null,null,null,null,null,null,null,null,null,null,null,null,null,null,null,null,null,null,null,null,null,null,null,null,null,null,null,null,null,null,null,null,null,null,null,null,null,null,null,null,null,null,null,null,""]
[null,null,null,null,null,null,null,null,null,null,null,null,null,null,null,null,null,null,null,null,null,null,null,null,null,null,null,null,null,null,null,null,null,null,null,null,null,null,null,null,null,null,null,null,null,null,null,null,null,null,null,null,null,null,null,null,null,null,null,null,null,null,null,null,null,null,null,null,null,null,null,null,null,null,null,null,null,null,null,null,null,null,null,null,null,null,null,null,null,null,null,null,null,null,null,null,null,null,null,null,null,null,null,null,""]
[null,null,null,null,null,null,null,null,null,null,null,null,null,null,null,null,null,null,null,null,"ja",null,null,null,null,null,null,null,null,null,null,null,null,null,null,null,null,null,null,null,null,null,null,null,null,null,null,null,null,null,null,null,null,null,null,null,null,null,null,null,null,null,null,null,null,null,null,null,null,null,null,null,null,null,null,null,null,null,null,null,null,null,null,null,null,null,null,null,null,null,null,null,null,null,null,null,null,null,null,null,null,null,null,null,""]
[null,null,null,null,null,null,null,null,null,null,null,null,null,null,null,null,null,null,null,null,"neen",null,null,null,null,null,null,null,null,null,null,null,null,null,null,null,null,null,null,null,null,null,null,null,null,null,null,null,null,null,null,null,null,null,null,null,null,null,null,null,null,null,null,null,null,null,null,null,null,null,null,null,null,null,null,null,null,null,null,null,null,null,null,null,null,null,null,null,null,null,null,null,null,null,null,null,null,null,null,null,null,null,null,null,""]
[null,null,null,null,null,null,null,null,null,null,null,null,null,null,null,null,null,null,null,null,null,null,null,null,null,null,null,null,null,null,null,null,null,null,null,null,null,null,null,null,null,null,null,null,null,null,null,null,null,null,null,null,null,null,null,null,null,null,null,null,null,null,null,null,null,null,null,null,null,null,null,null,null,null,null,null,null,null,null,null,null,null,null,null,null,null,null,null,null,null,null,null,null,null,null,null,null,null,null,null,null,null,null,null,""]
[null,null,null,null,null,null,null,null,null,null,null,null,null,null,null,null,null,null,null,null,null,null,null,null,null,null,null,null,null,null,null,null,null,null,null,null,null,null,null,null,null,null,null,null,null,null,null,null,null,null,null,null,null,null,null,null,null,null,null,null,null,null,null,null,null,null,null,null,null,null,null,null,null,null,null,null,null,null,null,null,null,null,null,null,null,null,null,null,null,null,null,null,null,null,null,null,null,null,null,null,null,null,null,null,""]
[null,null,null,null,null,null,null,null,null,null,null,null,null,null,null,null,null,null,null,null,"Kies je ophaalcentrum ",null,null,null,null,null,null,null,null,null,null,null,null,null,null,null,null,null,null,null,null,null,null,null,null,null,null,null,null,null,null,null,null,null,null,null,null,null,null,null,null,null,null,null,null,null,null,null,null,null,null,null,null,null,null,null,null,null,null,null,null,null,null,null,null,null,null,null,null,null,null,null,null,null,null,null,null,null,null,null,null,null,null,null,""]
[null,null,null,null,null,null,null,null,null,null,null,null,null,null,null,null,null,null,null,null,"Rechtstreeks naar eindklant",null,null,null,null,null,null,null,null,null,null,null,null,null,null,null,null,null,null,null,null,null,null,null,null,null,null,null,null,null,null,null,null,null,null,null,null,null,null,null,null,null,null,null,null,null,null,null,null,null,null,null,null,null,null,null,null,null,null,null,null,null,null,null,null,null,null,null,null,null,null,null,null,null,null,null,null,null,null,null,null,null,null,null,""]
[null,null,null,null,null,null,null,null,null,null,null,null,null,null,null,null,null,null,null,null,"Ophaalcentrum Gent",null,null,null,null,null,null,null,null,null,null,null,null,null,null,null,null,null,null,null,null,null,null,null,null,null,null,null,null,null,null,null,null,null,null,null,null,null,null,null,null,null,null,null,null,null,null,null,null,null,null,null,null,null,null,null,null,null,null,null,null,null,null,null,null,null,null,null,null,null,null,null,null,null,null,null,null,null,null,null,null,null,null,null,""]
[null,null,null,null,null,null,null,null,null,null,null,null,null,null,null,null,null,null,null,null,"Ophaalcentrum Beringen",null,null,null,null,null,null,null,null,null,null,null,null,null,null,null,null,null,null,null,null,null,null,null,null,null,null,null,null,null,null,null,null,null,null,null,null,null,null,null,null,null,null,null,null,null,null,null,null,null,null,null,null,null,null,null,null,null,null,null,null,null,null,null,null,null,null,null,null,null,null,null,null,null,null,null,null,null,null,null,null,null,null,null,""]
[null,null,null,null,null,null,null,null,null,null,null,null,null,null,null,null,null,null,null,null,"Ophaalcentrum Boortmeerbeek",null,null,null,null,null,null,null,null,null,null,null,null,null,null,null,null,null,null,null,null,null,null,null,null,null,null,null,null,null,null,null,null,null,null,null,null,null,null,null,null,null,null,null,null,null,null,null,null,null,null,null,null,null,null,null,null,null,null,null,null,null,null,null,null,null,null,null,null,null,null,null,null,null,null,null,null,null,null,null,null,null,null,null,""]
[null,null,null,null,null,null,null,null,null,null,null,null,null,null,null,null,null,null,null,null,"Ophaalcentrum Zemst",null,null,null,null,null,null,null,null,null,null,null,null,null,null,null,null,null,null,null,null,null,null,null,null,null,null,null,null,null,null,null,null,null,null,null,null,null,null,null,null,null,null,null,null,null,null,null,null,null,null,null,null,null,null,null,null,null,null,null,null,null,null,null,null,null,null,null,null,null,null,null,null,null,null,null,null,null,null,null,null,null,null,null,""]
[null,null,null,null,null,null,null,null,null,null,null,null,null,null,null,null,null,null,null,null,"Ophaalcentrum Berlaar",null,null,null,null,null,null,null,null,null,null,null,null,null,null,null,null,null,null,null,null,null,null,null,null,null,null,null,null,null,null,null,null,null,null,null,null,null,null,null,null,null,null,null,null,null,null,null,null,null,null,null,null,null,null,null,null,null,null,null,null,null,null,null,null,null,null,null,null,null,null,null,null,null,null,null,null,null,null,null,null,null,null,null,""]
[null,null,null,null,null,null,null,null,null,null,null,null,null,null,null,null,null,null,null,null,"Ophaalcentrum Wuustwezel",null,null,null,null,null,null,null,null,null,null,null,null,null,null,null,null,null,null,null,null,null,null,null,null,null,null,null,null,null,null,null,null,null,null,null,null,null,null,null,null,null,null,null,null,null,null,null,null,null,null,null,null,null,null,null,null,null,null,null,null,null,null,null,null,null,null,null,null,null,null,null,null,null,null,null,null,null,null,null,null,null,null,null,""]
[null,null,null,null,null,null,null,null,null,null,null,null,null,null,null,null,null,null,null,null,"Ophaalcentrum Kalmthout",null,null,null,null,null,null,null,null,null,null,null,null,null,null,null,null,null,null,null,null,null,null,null,null,null,null,null,null,null,null,null,null,null,null,null,null,null,null,null,null,null,null,null,null,null,null,null,null,null,null,null,null,null,null,null,null,null,null,null,null,null,null,null,null,null,null,null,null,null,null,null,null,null,null,null,null,null,null,null,null,null,null,null,""]
[null,null,null,null,null,null,null,null,null,null,null,null,null,null,null,null,null,null,null,null,"Ophaalcentrum Bousval",null,null,null,null,null,null,null,null,null,null,null,null,null,null,null,null,null,null,null,null,null,null,null,null,null,null,null,null,null,null,null,null,null,null,null,null,null,null,null,null,null,null,null,null,null,null,null,null,null,null,null,null,null,null,null,null,null,null,null,null,null,null,null,null,null,null,null,null,null,null,null,null,null,null,null,null,null,null,null,null,null,null,null,""]
[null,null,null,null,null,null,null,null,null,null,null,null,null,null,null,null,null,null,null,null,null,null,null,null,null,null,null,null,null,null,null,null,null,null,null,null,null,null,null,null,null,null,null,null,null,null,null,null,null,null,null,null,null,null,null,null,null,null,null,null,null,null,null,null,null,null,null,null,null,null,null,null,null,null,null,null,null,null,null,null,null,null,null,null,null,null,null,null,null,null,null,null,null,null,null,null,null,null,null,null,null,null,null,null,""]
[null,null,null,null,null,null,null,null,null,null,null,null,null,null,null,null,null,null,null,null,null,null,null,null,null,null,null,null,null,null,null,null,null,null,null,null,null,null,null,null,null,null,null,null,null,null,null,null,null,null,null,null,null,null,null,null,null,null,null,null,null,null,null,null,null,null,null,null,null,null,null,null,null,null,null,null,null,null,null,null,null,null,null,null,null,null,null,null,null,null,null,null,null,null,null,null,null,null,null,null,null,null,null,null,""]
[null,null,null,null,null,null,null,null,null,null,null,null,null,null,null,null,null,null,null,null,null,null,null,null,null,null,null,null,null,null,null,null,null,null,null,null,null,null,null,null,null,null,null,null,null,null,null,null,null,null,null,null,null,null,null,null,null,null,null,null,null,null,null,null,null,null,null,null,null,null,null,null,null,null,null,null,null,null,null,null,null,null,null,null,null,null,null,null,null,null,null,null,null,null,null,null,null,null,null,null,null,null,null,null,""]
[null,null,null,null,null,null,null,null,null,null,null,null,null,null,null,null,null,null,null,null,null,null,null,null,null,null,null,null,null,null,null,null,null,null,null,null,null,null,null,null,null,null,null,null,null,null,null,null,null,null,null,null,null,null,null,null,null,null,null,null,null,null,null,null,null,null,null,null,null,null,null,null,null,null,null,null,null,null,null,null,null,null,null,null,null,null,null,null,null,null,null,null,null,null,null,null,null,null,null,null,null,null,null,null,""]
[null,null,null,null,null,null,null,null,null,null,null,null,null,null,null,null,null,null,null,null,null,null,null,null,null,null,null,null,null,null,null,null,null,null,null,null,null,null,null,null,null,null,null,null,null,null,null,null,null,null,null,null,null,null,null,null,null,null,null,null,null,null,null,null,null,null,null,null,null,null,null,null,null,null,null,null,null,null,null,null,null,null,null,null,null,null,null,null,null,null,null,null,null,null,null,null,null,null,null,null,null,null,null,null,""]
[null,null,null,null,null,null,null,null,null,null,null,null,null,null,null,null,null,null,null,null,null,null,null,null,null,null,null,null,null,null,null,null,null,null,null,null,null,null,null,null,null,null,null,null,null,null,null,null,null,null,null,null,null,null,null,null,null,null,null,null,null,null,null,null,null,null,null,null,null,null,null,null,null,null,null,null,null,null,null,null,null,null,null,null,null,null,null,null,null,null,null,null,null,null,null,null,null,null,null,null,null,null,null,null,""]
[null,null,null,null,null,null,null,null,null,null,null,null,null,null,null,null,null,null,null,null,null,null,null,null,null,null,null,null,null,null,null,null,null,null,null,null,null,null,null,null,null,null,null,null,null,null,null,null,null,null,null,null,null,null,null,null,null,null,null,null,null,null,null,null,null,null,null,null,null,null,null,null,null,null,null,null,null,null,null,null,null,null,null,null,null,null,null,null,null,null,null,null,null,null,null,null,null,null,null,null,null,null,null,null,""]
[null,null,null,null,null,null,null,null,null,null,null,null,null,null,null,null,null,null,null,null,null,null,null,null,null,null,null,null,null,null,null,null,null,null,null,null,null,null,null,null,null,null,null,null,null,null,null,null,null,null,null,null,null,null,null,null,null,null,null,null,null,null,null,null,null,null,null,null,null,null,null,null,null,null,null,null,null,null,null,null,null,null,null,null,null,null,null,null,null,null,null,null,null,null,null,null,null,null,null,null,null,null,null,null,""]
[null,null,null,null,null,null,null,null,null,null,null,null,null,null,null,null,null,null,null,null,null,null,null,null,null,null,null,null,null,null,null,null,null,null,null,null,null,null,null,null,null,null,null,null,null,null,null,null,null,null,null,null,null,null,null,null,null,null,null,null,null,null,null,null,null,null,null,null,null,null,null,null,null,null,null,null,null,null,null,null,null,null,null,null,null,null,null,null,null,null,null,null,null,null,null,null,null,null,null,null,null,null,null,null,""]
[null,null,null,null,null,null,null,null,null,null,null,null,null,null,null,null,null,null,null,null,null,null,null,null,null,null,null,null,null,null,null,null,null,null,null,null,null,null,null,null,null,null,null,null,null,null,null,null,null,null,null,null,null,null,null,null,null,null,null,null,null,null,null,null,null,null,null,null,null,null,null,null,null,null,null,null,null,null,null,null,null,null,null,null,null,null,null,null,null,null,null,null,null,null,null,null,null,null,null,null,null,null,null,null,""]
[null,null,null,null,null,null,null,null,null,null,null,null,null,null,null,null,null,null,null,null,null,null,null,null,null,null,null,null,null,null,null,null,null,null,null,null,null,null,null,null,null,null,null,null,null,null,null,null,null,null,null,null,null,null,null,null,null,null,null,null,null,null,null,null,null,null,null,null,null,null,null,null,null,null,null,null,null,null,null,null,null,null,null,null,null,null,null,null,null,null,null,null,null,null,null,null,null,null,null,null,null,null,null,null,""]
[null,null,null,null,null,null,null,null,null,null,null,null,null,null,null,null,null,null,null,null,null,null,null,null,null,null,null,null,null,null,null,null,null,null,null,null,null,null,null,null,null,null,null,null,null,null,null,null,null,null,null,null,null,null,null,null,null,null,null,null,null,null,null,null,null,null,null,null,null,null,null,null,null,null,null,null,null,null,null,null,null,null,null,null,null,null,null,null,null,null,null,null,null,null,null,null,null,null,null,null,null,null,null,null,""]
[null,null,null,null,null,null,null,null,null,null,null,null,null,null,null,null,null,null,null,null,null,null,null,null,null,null,null,null,null,null,null,null,null,null,null,null,null,null,null,null,null,null,null,null,null,null,null,null,null,null,null,null,null,null,null,null,null,null,null,null,null,null,null,null,null,null,null,null,null,null,null,null,null,null,null,null,null,null,null,null,null,null,null,null,null,null,null,null,null,null,null,null,null,null,null,null,null,null,null,null,null,null,null,null,""]
[null,null,null,null,null,null,null,null,null,null,null,null,null,null,null,null,null,null,null,null,null,null,null,null,null,null,null,null,null,null,null,null,null,null,null,null,null,null,null,null,null,null,null,null,null,null,null,null,null,null,null,null,null,null,null,null,null,null,null,null,null,null,null,null,null,null,null,null,null,null,null,null,null,null,null,null,null,null,null,null,null,null,null,null,null,null,null,null,null,null,null,null,null,null,null,null,null,null,null,null,null,null,null,null,""]
[null,null,null,null,null,null,null,null,null,null,null,null,null,null,null,null,null,null,null,null,null,null,null,null,null,null,null,null,null,null,null,null,null,null,null,null,null,null,null,null,null,null,null,null,null,null,null,null,null,null,null,null,null,null,null,null,null,null,null,null,null,null,null,null,null,null,null,null,null,null,null,null,null,null,null,null,null,null,null,null,null,null,null,null,null,null,null,null,null,null,null,null,null,null,null,null,null,null,null,null,null,null,null,null,""]
[null,null,null,null,null,null,null,null,null,null,null,null,null,null,null,null,null,null,null,null,null,null,null,null,null,null,null,null,null,null,null,null,null,null,null,null,null,null,null,null,null,null,null,null,null,null,null,null,null,null,null,null,null,null,null,null,null,null,null,null,null,null,null,null,null,null,null,null,null,null,null,null,null,null,null,null,null,null,null,null,null,null,null,null,null,null,null,null,null,null,null,null,null,null,null,null,null,null,null,null,null,null,null,null,""]
[null,null,null,null,null,null,null,null,null,null,null,null,null,null,null,null,null,null,null,null,null,null,null,null,null,null,null,null,null,null,null,null,null,null,null,null,null,null,null,null,null,null,null,null,null,null,null,null,null,null,null,null,null,null,null,null,null,null,null,null,null,null,null,null,null,null,null,null,null,null,null,null,null,null,null,null,null,null,null,null,null,null,null,null,null,null,null,null,null,null,null,null,null,null,null,null,null,null,null,null,null,null,null,null,""]
[null,null,null,null,null,null,null,null,null,null,null,null,null,null,null,null,null,null,null,null,null,null,null,null,null,null,null,null,null,null,null,null,null,null,null,null,null,null,null,null,null,null,null,null,null,null,null,null,null,null,null,null,null,null,null,null,null,null,null,null,null,null,null,null,null,null,null,null,null,null,null,null,null,null,null,null,null,null,null,null,null,null,null,null,null,null,null,null,null,null,null,null,null,null,null,null,null,null,null,null,null,null,null,null,""]
[null,null,null,null,null,null,null,null,null,null,null,null,null,null,null,null,null,null,null,null,null,null,null,null,null,null,null,null,null,null,null,null,null,null,null,null,null,null,null,null,null,null,null,null,null,null,null,null,null,null,null,null,null,null,null,null,null,null,null,null,null,null,null,null,null,null,null,null,null,null,null,null,null,null,null,null,null,null,null,null,null,null,null,null,null,null,null,null,null,null,null,null,null,null,null,null,null,null,null,null,null,null,null,null,""]
[null,null,null,null,null,null,null,null,null,null,null,null,null,null,null,null,null,null,null,null,null,null,null,null,null,null,null,null,null,null,null,null,null,null,null,null,null,null,null,null,null,null,null,null,null,null,null,null,null,null,null,null,null,null,null,null,null,null,null,null,null,null,null,null,null,null,null,null,null,null,null,null,null,null,null,null,null,null,null,null,null,null,null,null,null,null,null,null,null,null,null,null,null,null,null,null,null,null,null,null,null,null,null,null,""]
[null,null,null,null,null,null,null,null,null,null,null,null,null,null,null,null,null,null,null,null,null,null,null,null,null,null,null,null,null,null,null,null,null,null,null,null,null,null,null,null,null,null,null,null,null,null,null,null,null,null,null,null,null,null,null,null,null,null,null,null,null,null,null,null,null,null,null,null,null,null,null,null,null,null,null,null,null,null,null,null,null,null,null,null,null,null,null,null,null,null,null,null,null,null,null,null,null,null,null,null,null,null,null,null,""]
[null,null,null,null,null,null,null,null,null,null,null,null,null,null,null,null,null,null,null,null,null,null,null,null,null,null,null,null,null,null,null,null,null,null,null,null,null,null,null,null,null,null,null,null,null,null,null,null,null,null,null,null,null,null,null,null,null,null,null,null,null,null,null,null,null,null,null,null,null,null,null,null,null,null,null,null,null,null,null,null,null,null,null,null,null,null,null,null,null,null,null,null,null,null,null,null,null,null,null,null,null,null,null,null,""]
[null,null,null,null,null,null,null,null,null,null,null,null,null,null,null,null,null,null,null,null,null,null,null,null,null,null,null,null,null,null,null,null,null,null,null,null,null,null,null,null,null,null,null,null,null,null,null,null,null,null,null,null,null,null,null,null,null,null,null,null,null,null,null,null,null,null,null,null,null,null,null,null,null,null,null,null,null,null,null,null,null,null,null,null,null,null,null,null,null,null,null,null,null,null,null,null,null,null,null,null,null,null,null,null,""]
[null,null,null,null,null,null,null,null,null,null,null,null,null,null,null,null,null,null,null,null,null,null,null,null,null,null,null,null,null,null,null,null,null,null,null,null,null,null,null,null,null,null,null,null,null,null,null,null,null,null,null,null,null,null,null,null,null,null,null,null,null,null,null,null,null,null,null,null,null,null,null,null,null,null,null,null,null,null,null,null,null,null,null,null,null,null,null,null,null,null,null,null,null,null,null,null,null,null,null,null,null,null,null,null,""]
[null,null,null,null,null,null,null,null,null,null,null,null,null,null,null,null,null,null,null,null,null,null,null,null,null,null,null,null,null,null,null,null,null,null,null,null,null,null,null,null,null,null,null,null,null,null,null,null,null,null,null,null,null,null,null,null,null,null,null,null,null,null,null,null,null,null,null,null,null,null,null,null,null,null,null,null,null,null,null,null,null,null,null,null,null,null,null,null,null,null,null,null,null,null,null,null,null,null,null,null,null,null,null,null,""]
[null,null,null,null,null,null,null,null,null,null,null,null,null,null,null,null,null,null,null,null,null,null,null,null,null,null,null,null,null,null,null,null,null,null,null,null,null,null,null,null,null,null,null,null,null,null,null,null,null,null,null,null,null,null,null,null,null,null,null,null,null,null,null,null,null,null,null,null,null,null,null,null,null,null,null,null,null,null,null,null,null,null,null,null,null,null,null,null,null,null,null,null,null,null,null,null,null,null,null,null,null,null,null,null,""]